Workbook

Sheet Умная Т (hidden)
C1: Калужская область по состоянию на 01.12.2022 г. | D1: =SUM(Таблица1[Оплачено случаев]) -> 15700 | F1: =SUM(Таблица1[План ДВН, чел.]) -> 17087 | I1: Выполнение плана, % | J1: =ROUND(D1/F1,3) -> 0.919 | P1: =(K24+P24+U24+Z24+AE24+AJ24+AO24+AT24+AY24+BD24+BI24+BN24)/(J24+O24+T24+Y24+AD24+AI24+AN24+AS24+AX24+BC24+BH24+BM24)*1000 -> 2018.001596
C2: Средний тариф ДВН | D2: =P1 -> 2018.001596 | K2: ФАКТ | L2: ПЛАН | O2: ФАКТ | Q2: ПЛАН | T2: ФАКТ | V2: ПЛАН | Y2: ФАКТ | AA2: ПЛАН | AD2: ФАКТ | AF2: ПЛАН | AI2: ФАКТ | AK2: ПЛАН | AN2: ФАКТ | AP2: ПЛАН | AS2: ФАКТ | AU2: ПЛАН | AX2: ФАКТ | AZ2: ПЛАН | BC2: ФАКТ | BE2: ПЛАН | BH2: ФАКТ | BJ2: ПЛАН | BM2: ФАКТ | BO2: ПЛАН
A3: Месяц | B3: Вид | C3: Наименование медицинской организации | D3: Оплачено случаев | E3: Оплачено сумма, тыс.руб. | F3: План ДВН, чел. | G3: Отклонение | H3: % выполнения | J3: 1мес | K3: январь | L3: январь | M3: 2 мес | O3: Февраль | Q3: Февраль | R3: 3 мес | T3: Март | V3: Март | W3: 4 мес | Y3: Апрель | AA3: Апрель | AB3: 5 мес | AD3: Май | AF3: Май | AG3: 6 мес | AI3: Июнь | AK3: Июнь | AL3: 7 мес | AN3: Июль | AP3: Июль | AQ3: 8 мес | AS3: Август | AU3: Август | AV3: 9 мес | AX3: Сентябрь | AZ3: Сентябрь | BA3: 10 мес | BC3: Октябрь | BE3: Октябрь | BF3: 11 мес | BH3: Ноябрь | BJ3: Ноябрь | BK3: 12 мес | BM3: Декабрь | BO3: Декабрь
A4: Январь | B4: ДВН | C4: ЦМБ № 1 | D4: =J4 -> 106 | E4: =K4 -> 209.91061 | F4: =L4 -> 164 | G4: =Таблица1[[#This Row],[Оплачено случаев]]-Таблица1[[#This Row],[План ДВН, чел.]] -> -58 | H4: =ROUND(Таблица1[[#This Row],[Оплачено случаев]]/Таблица1[[#This Row],[План ДВН, чел.]]*100,1) -> 64.6 | J4: 106 | K4: 209.91061 | L4: 164 | M4: =J4+O4 -> 252 | N4: =K4+P4 -> 514.8625 | O4: 146 | P4: 304.95189 | Q4: 300 | R4: =M4+T4 -> 435 | S4: =N4+U4 -> 895.74913 | T4: 183 | U4: 380.88663 | V4: 336 | W4: =R4+Y4 -> 435 | X4: =S4+Z4 -> 895.74913 | AB4: =W4+AD4 -> 435 | AC4: =X4+AE4 -> 895.74913 | AG4: =AB4+AI4 -> 435 | AH4: =AC4+AJ4 -> 895.74913 | AL4: =AG4+AN4 -> 435 | AM4: =AH4+AO4 -> 895.74913 | AQ4: =AL4+AS4 -> 435 | AR4: =AM4+AT4 -> 895.74913 | AV4: =AQ4+AX4 -> 435 | AW4: =AR4+AY4 -> 895.74913 | BA4: =AV4+BC4 -> 435 | BB4: =AW4+BD4 -> 895.74913 | BF4: =BH4+BA4 -> 435 | BG4: =BB4+BI4 -> 895.74913 | BK4: =BF4+BM4 -> 435 | BL4: =BG4+BN4 -> 895.74913
A5: Январь | B5: ДВН | C5: ЦМБ № 2 | D5: =J5 -> 382 | E5: =K5 -> 758.78379 | F5: =L5 -> 286 | G5: =Таблица1[[#This Row],[Оплачено случаев]]-Таблица1[[#This Row],[План ДВН, чел.]] -> 96 | H5: =ROUND(Таблица1[[#This Row],[Оплачено случаев]]/Таблица1[[#This Row],[План ДВН, чел.]]*100,1) -> 133.6 | J5: 382 | K5: 758.78379 | L5: 286 | M5: =J5+O5 -> 679 | N5: =K5+P5 -> 1360.03013 | O5: 297 | P5: 601.24634 | Q5: 529 | R5: =M5+T5 -> 1017 | S5: =N5+U5 -> 2056.27327 | T5: 338 | U5: 696.24314 | V5: 530 | W5: =R5+Y5 -> 1017 | X5: =S5+Z5 -> 2056.27327 | AB5: =W5+AD5 -> 1017 | AC5: =X5+AE5 -> 2056.27327 | AG5: =AB5+AI5 -> 1017 | AH5: =AC5+AJ5 -> 2056.27327 | AL5: =AG5+AN5 -> 1017 | AM5: =AH5+AO5 -> 2056.27327 | AQ5: =AL5+AS5 -> 1017 | AR5: =AM5+AT5 -> 2056.27327 | AV5: =AQ5+AX5 -> 1017 | AW5: =AR5+AY5 -> 2056.27327 | BA5: =AV5+BC5 -> 1017 | BB5: =AW5+BD5 -> 2056.27327 | BF5: =BH5+BA5 -> 1017 | BG5: =BB5+BI5 -> 2056.27327 | BK5: =BF5+BM5 -> 1017 | BL5: =BG5+BN5 -> 2056.27327
A6: Январь | B6: ДВН | C6: ЦМБ № 3 | D6: 109 | E6: 223.60201 | F6: 148 | G6: =Таблица1[[#This Row],[Оплачено случаев]]-Таблица1[[#This Row],[План ДВН, чел.]] -> -39 | H6: =ROUND(Таблица1[[#This Row],[Оплачено случаев]]/Таблица1[[#This Row],[План ДВН, чел.]]*100,1) -> 73.6 | J6: 109 | K6: 223.60201 | L6: 148 | M6: 200 | N6: 403.73275 | O6: 91 | P6: 180.13074 | Q6: 148 | R6: 304 | S6: 597.49631 | T6: 104 | U6: 193.76356 | V6: 244 | W6: 304 | X6: 597.49631 | AB6: 304 | AC6: 597.49631 | AG6: 304 | AH6: 597.49631 | AL6: 304 | AM6: 597.49631 | AQ6: 304 | AR6: 597.49631 | AV6: 304 | AW6: 597.49631 | BA6: 304 | BB6: 597.49631 | BF6: 304 | BG6: 597.49631 | BK6: 304 | BL6: 597.49631
A7: Январь | B7: ДВН | C7: ЦМБ № 4 | D7: 34 | E7: 68.31235 | F7: 89 | G7: =Таблица1[[#This Row],[Оплачено случаев]]-Таблица1[[#This Row],[План ДВН, чел.]] -> -55 | H7: =ROUND(Таблица1[[#This Row],[Оплачено случаев]]/Таблица1[[#This Row],[План ДВН, чел.]]*100,1) -> 38.2 | J7: 34 | K7: 68.31235 | L7: 89 | M7: 51 | N7: 103.38372 | O7: 17 | P7: 35.07137 | Q7: 137 | R7: 113 | S7: 231.74471 | T7: 62 | U7: 128.36099 | V7: 137 | W7: 113 | X7: 231.74471 | AB7: 113 | AC7: 231.74471 | AG7: 113 | AH7: 231.74471 | AL7: 113 | AM7: 231.74471 | AQ7: 113 | AR7: 231.74471 | AV7: 113 | AW7: 231.74471 | BA7: 113 | BB7: 231.74471 | BF7: 113 | BG7: 231.74471 | BK7: 113 | BL7: 231.74471
A8: Январь | B8: ДВН | C8: ЦМБ № 5 | D8: 14 | E8: 32.27729 | F8: 133 | G8: =Таблица1[[#This Row],[Оплачено случаев]]-Таблица1[[#This Row],[План ДВН, чел.]] -> -119 | H8: =ROUND(Таблица1[[#This Row],[Оплачено случаев]]/Таблица1[[#This Row],[План ДВН, чел.]]*100,1) -> 10.5 | J8: 14 | K8: 32.27729 | L8: 133 | M8: 268 | N8: 541.98141 | O8: 254 | P8: 509.70412 | Q8: 144 | R8: 494 | S8: 983.14639 | T8: 226 | U8: 441.16498 | V8: 146 | W8: 494 | X8: 983.14639 | AB8: 494 | AC8: 983.14639 | AG8: 494 | AH8: 983.14639 | AL8: 494 | AM8: 983.14639 | AQ8: 494 | AR8: 983.14639 | AV8: 494 | AW8: 983.14639 | BA8: 494 | BB8: 983.14639 | BF8: 494 | BG8: 983.14639 | BK8: 494 | BL8: 983.14639
A9: Январь | B9: ДВН | C9: ЦМБ № 6 | D9: 260 | E9: 509.49992 | F9: 300 | G9: =Таблица1[[#This Row],[Оплачено случаев]]-Таблица1[[#This Row],[План ДВН, чел.]] -> -40 | H9: =ROUND(Таблица1[[#This Row],[Оплачено случаев]]/Таблица1[[#This Row],[План ДВН, чел.]]*100,1) -> 86.7 | J9: 260 | K9: 509.49992 | L9: 300 | M9: 499 | N9: 973.79758 | O9: 239 | P9: 464.29766 | Q9: 300 | R9: 848 | S9: 1651.83596 | T9: 349 | U9: 678.03838 | V9: 350 | W9: 848 | X9: 1651.83596 | AB9: 848 | AC9: 1651.83596 | AG9: 848 | AH9: 1651.83596 | AL9: 848 | AM9: 1651.83596 | AQ9: 848 | AR9: 1651.83596 | AV9: 848 | AW9: 1651.83596 | BA9: 848 | BB9: 1651.83596 | BF9: 848 | BG9: 1651.83596 | BK9: 848 | BL9: 1651.83596
A10: Январь | B10: ДВН | C10: КГБ № 5 | D10: 657 | E10: 1330.09196 | F10: 393 | G10: =Таблица1[[#This Row],[Оплачено случаев]]-Таблица1[[#This Row],[План ДВН, чел.]] -> 264 | H10: =ROUND(Таблица1[[#This Row],[Оплачено случаев]]/Таблица1[[#This Row],[План ДВН, чел.]]*100,1) -> 167.2 | J10: 657 | K10: 1330.09196 | L10: 393 | M10: 1478 | N10: 3025.6361 | O10: 821 | P10: 1695.54414 | Q10: 1100 | R10: 2509 | S10: 5172.59047 | T10: 1031 | U10: 2146.95437 | V10: 1100 | W10: 2509 | X10: 5172.59047 | AB10: 2509 | AC10: 5172.59047 | AG10: 2509 | AH10: 5172.59047 | AL10: 2509 | AM10: 5172.59047 | AQ10: 2509 | AR10: 5172.59047 | AV10: 2509 | AW10: 5172.59047 | BA10: 2509 | BB10: 5172.59047 | BF10: 2509 | BG10: 5172.59047 | BK10: 2509 | BL10: 5172.59047
A11: Январь | B11: ДВН | C11: КГКБ № 4 | D11: 736 | E11: 1496.06481 | F11: 912 | G11: =Таблица1[[#This Row],[Оплачено случаев]]-Таблица1[[#This Row],[План ДВН, чел.]] -> -176 | H11: =ROUND(Таблица1[[#This Row],[Оплачено случаев]]/Таблица1[[#This Row],[План ДВН, чел.]]*100,1) -> 80.7 | J11: 736 | K11: 1496.06481 | L11: 912 | M11: 1614 | N11: 3304.77526 | O11: 878 | P11: 1808.71045 | Q11: 912 | R11: 2764 | S11: 5619.69873 | T11: 1150 | U11: 2314.92347 | V11: 912 | W11: 2764 | X11: 5619.69873 | AB11: 2764 | AC11: 5619.69873 | AG11: 2764 | AH11: 5619.69873 | AL11: 2764 | AM11: 5619.69873 | AQ11: 2764 | AR11: 5619.69873 | AV11: 2764 | AW11: 5619.69873 | BA11: 2764 | BB11: 5619.69873 | BF11: 2764 | BG11: 5619.69873 | BK11: 2764 | BL11: 5619.69873
A12: Январь | B12: ДВН | C12: Городская поликлиника | D12: 376 | E12: 762.44761 | F12: 425 | G12: =Таблица1[[#This Row],[Оплачено случаев]]-Таблица1[[#This Row],[План ДВН, чел.]] -> -49 | H12: =ROUND(Таблица1[[#This Row],[Оплачено случаев]]/Таблица1[[#This Row],[План ДВН, чел.]]*100,1) -> 88.5 | J12: 376 | K12: 762.44761 | L12: 425 | M12: 702 | N12: 1439.99278 | O12: 326 | P12: 677.54517 | Q12: 456 | R12: 1115 | S12: 2259.05026 | T12: 413 | U12: 819.05748 | V12: 456 | W12: 1115 | X12: 2259.05026 | AB12: 1115 | AC12: 2259.05026 | AG12: 1115 | AH12: 2259.05026 | AL12: 1115 | AM12: 2259.05026 | AQ12: 1115 | AR12: 2259.05026 | AV12: 1115 | AW12: 2259.05026 | BA12: 1115 | BB12: 2259.05026 | BF12: 1115 | BG12: 2259.05026 | BK12: 1115 | BL12: 2259.05026
A13: Январь | B13: ДВН | C13: МСЧ № 1 г. Калуги | D13: 344 | E13: 694.18468 | F13: 380 | G13: =Таблица1[[#This Row],[Оплачено случаев]]-Таблица1[[#This Row],[План ДВН, чел.]] -> -36 | H13: =ROUND(Таблица1[[#This Row],[Оплачено случаев]]/Таблица1[[#This Row],[План ДВН, чел.]]*100,1) -> 90.5 | J13: 344 | K13: 694.18468 | L13: 380 | M13: 1128 | N13: 2221.00938 | O13: 784 | P13: 1526.8247 | Q13: 620 | R13: 1958 | S13: 3638.20835 | T13: 830 | U13: 1417.19897 | V13: 600 | W13: 1958 | X13: 3638.20835 | AB13: 1958 | AC13: 3638.20835 | AG13: 1958 | AH13: 3638.20835 | AL13: 1958 | AM13: 3638.20835 | AQ13: 1958 | AR13: 3638.20835 | AV13: 1958 | AW13: 3638.20835 | BA13: 1958 | BB13: 3638.20835 | BF13: 1958 | BG13: 3638.20835 | BK13: 1958 | BL13: 3638.20835
A14: Январь | B14: ДВН | C14: МСЧ № 2 г. Калуги | D14: 0 | E14: 0 | F14: 0 | G14: =Таблица1[[#This Row],[Оплачено случаев]]-Таблица1[[#This Row],[План ДВН, чел.]] -> 0 | H14: =ROUND(Таблица1[[#This Row],[Оплачено случаев]]/Таблица1[[#This Row],[План ДВН, чел.]]*100,1) ->  | J14: 0 | K14: 0 | L14: 0 | M14: 0 | N14: 0 | P14: 0 | Q14: 1 | R14: 1 | S14: 2.46974 | T14: 1 | U14: 2.46974 | V14: 0 | W14: 1 | X14: 2.46974 | AB14: 1 | AC14: 2.46974 | AG14: 1 | AH14: 2.46974 | AL14: 1 | AM14: 2.46974 | AQ14: 1 | AR14: 2.46974 | AV14: 1 | AW14: 2.46974 | BA14: 1 | BB14: 2.46974 | BF14: 1 | BG14: 2.46974 | BK14: 1 | BL14: 2.46974
A15: Январь | B15: ДВН | C15: МСЧ МВД | D15: 0 | E15: 0 | F15: 0 | G15: =Таблица1[[#This Row],[Оплачено случаев]]-Таблица1[[#This Row],[План ДВН, чел.]] -> 0 | H15: =ROUND(Таблица1[[#This Row],[Оплачено случаев]]/Таблица1[[#This Row],[План ДВН, чел.]]*100,1) ->  | J15: 0 | K15: 0 | L15: 0 | M15: 0 | N15: 0 | P15: 0 | R15: 0 | S15: 0 | U15: 0 | W15: 0 | X15: 0 | AB15: 0 | AC15: 0 | AG15: 0 | AH15: 0 | AL15: 0 | AM15: 0 | AQ15: 0 | AR15: 0 | AV15: 0 | AW15: 0 | BA15: 0 | BB15: 0 | BF15: 0 | BG15: 0 | BK15: 0 | BL15: 0
A16: Январь | B16: ДВН | C16: ЧУЗ "Больница "РЖД - Медицина" | D16: 42 | E16: 88.14426 | F16: 35 | G16: =Таблица1[[#This Row],[Оплачено случаев]]-Таблица1[[#This Row],[План ДВН, чел.]] -> 7 | H16: =ROUND(Таблица1[[#This Row],[Оплачено случаев]]/Таблица1[[#This Row],[План ДВН, чел.]]*100,1) -> 120 | J16: 42 | K16: 88.14426 | L16: 35 | M16: 66 | N16: 134.54406 | O16: 24 | P16: 46.3998 | Q16: 36 | R16: 102 | S16: 207.10706 | T16: 36 | U16: 72.563 | V16: 36 | W16: 102 | X16: 207.10706 | AB16: 102 | AC16: 207.10706 | AG16: 102 | AH16: 207.10706 | AL16: 102 | AM16: 207.10706 | AQ16: 102 | AR16: 207.10706 | AV16: 102 | AW16: 207.10706 | BA16: 102 | BB16: 207.10706 | BF16: 102 | BG16: 207.10706 | BK16: 102 | BL16: 207.10706
A17: Январь | B17: ДВН | C17: КБ № 8 ФМБА | D17: 654 | E17: 1363.81945 | F17: 395 | G17: =Таблица1[[#This Row],[Оплачено случаев]]-Таблица1[[#This Row],[План ДВН, чел.]] -> 259 | H17: =ROUND(Таблица1[[#This Row],[Оплачено случаев]]/Таблица1[[#This Row],[План ДВН, чел.]]*100,1) -> 165.6 | J17: 654 | K17: 1363.81945 | L17: 395 | M17: 1251 | N17: 2599.64794 | O17: 597 | P17: 1235.82849 | Q17: 725 | R17: 1815 | S17: 3737.3224 | T17: 564 | U17: 1137.67446 | V17: 875 | W17: 1815 | X17: 3737.3224 | AB17: 1815 | AC17: 3737.3224 | AG17: 1815 | AH17: 3737.3224 | AL17: 1815 | AM17: 3737.3224 | AQ17: 1815 | AR17: 3737.3224 | AV17: 1815 | AW17: 3737.3224 | BA17: 1815 | BB17: 3737.3224 | BF17: 1815 | BG17: 3737.3224 | BK17: 1815 | BL17: 3737.3224
A18: Январь | B18: ДВН | C18: ЦРБ Бабынинского района | D18: 69 | E18: 141.90129 | F18: 82 | G18: =Таблица1[[#This Row],[Оплачено случаев]]-Таблица1[[#This Row],[План ДВН, чел.]] -> -13 | H18: =ROUND(Таблица1[[#This Row],[Оплачено случаев]]/Таблица1[[#This Row],[План ДВН, чел.]]*100,1) -> 84.1 | J18: 69 | K18: 141.90129 | L18: 82 | M18: 138 | N18: 278.71293 | O18: 69 | P18: 136.81164 | Q18: 101 | R18: 252 | S18: 499.00114 | T18: 114 | U18: 220.28821 | V18: 101 | W18: 252 | X18: 499.00114 | AB18: 252 | AC18: 499.00114 | AG18: 252 | AH18: 499.00114 | AL18: 252 | AM18: 499.00114 | AQ18: 252 | AR18: 499.00114 | AV18: 252 | AW18: 499.00114 | BA18: 252 | BB18: 499.00114 | BF18: 252 | BG18: 499.00114 | BK18: 252 | BL18: 499.00114
A19: Январь | B19: ДВН | C19: ЦРБ Боровского района | D19: 296 | E19: 634.88559 | F19: 200 | G19: =Таблица1[[#This Row],[Оплачено случаев]]-Таблица1[[#This Row],[План ДВН, чел.]] -> 96 | H19: =ROUND(Таблица1[[#This Row],[Оплачено случаев]]/Таблица1[[#This Row],[План ДВН, чел.]]*100,1) -> 148 | J19: 296 | K19: 634.88559 | L19: 200 | M19: 480 | N19: 1044.84444 | O19: 184 | P19: 409.95885 | Q19: 200 | R19: 777 | S19: 1690.01863 | T19: 297 | U19: 645.17419 | V19: 200 | W19: 777 | X19: 1690.01863 | AB19: 777 | AC19: 1690.01863 | AG19: 777 | AH19: 1690.01863 | AL19: 777 | AM19: 1690.01863 | AQ19: 777 | AR19: 1690.01863 | AV19: 777 | AW19: 1690.01863 | BA19: 777 | BB19: 1690.01863 | BF19: 777 | BG19: 1690.01863 | BK19: 777 | BL19: 1690.01863
A20: Январь | B20: ДВН | C20: ЦРБ Жуковского района | D20: 74 | E20: 156.6205 | F20: 110 | G20: =Таблица1[[#This Row],[Оплачено случаев]]-Таблица1[[#This Row],[План ДВН, чел.]] -> -36 | H20: =ROUND(Таблица1[[#This Row],[Оплачено случаев]]/Таблица1[[#This Row],[План ДВН, чел.]]*100,1) -> 67.3 | J20: 74 | K20: 156.6205 | L20: 110 | M20: 129 | N20: 271.19675 | O20: 55 | P20: 114.57625 | Q20: 110 | R20: 418 | S20: 863.55951 | T20: 289 | U20: 592.36276 | V20: 120 | W20: 418 | X20: 863.55951 | AB20: 418 | AC20: 863.55951 | AG20: 418 | AH20: 863.55951 | AL20: 418 | AM20: 863.55951 | AQ20: 418 | AR20: 863.55951 | AV20: 418 | AW20: 863.55951 | BA20: 418 | BB20: 863.55951 | BF20: 418 | BG20: 863.55951 | BK20: 418 | BL20: 863.55951
A21: Январь | B21: ДВН | C21: ГП "Город Кременки" | D21: 13 | E21: 24.41059 | F21: 30 | G21: =Таблица1[[#This Row],[Оплачено случаев]]-Таблица1[[#This Row],[План ДВН, чел.]] -> -17 | H21: =ROUND(Таблица1[[#This Row],[Оплачено случаев]]/Таблица1[[#This Row],[План ДВН, чел.]]*100,1) -> 43.3 | J21: 13 | K21: 24.41059 | L21: 30 | M21: 25 | N21: 49.70655 | O21: 12 | P21: 25.29596 | Q21: 50 | R21: 44 | S21: 90.86068 | T21: 19 | U21: 41.15413 | V21: 50 | W21: 44 | X21: 90.86068 | AB21: 44 | AC21: 90.86068 | AG21: 44 | AH21: 90.86068 | AL21: 44 | AM21: 90.86068 | AQ21: 44 | AR21: 90.86068 | AV21: 44 | AW21: 90.86068 | BA21: 44 | BB21: 90.86068 | BF21: 44 | BG21: 90.86068 | BK21: 44 | BL21: 90.86068
A22: Январь | B22: ДВН | C22: ЦРБ Малоярославецкого района | D22: 280 | E22: 573.71119 | F22: 273 | G22: =Таблица1[[#This Row],[Оплачено случаев]]-Таблица1[[#This Row],[План ДВН, чел.]] -> 7 | H22: =ROUND(Таблица1[[#This Row],[Оплачено случаев]]/Таблица1[[#This Row],[План ДВН, чел.]]*100,1) -> 102.6 | J22: 280 | K22: 573.71119 | L22: 273 | M22: 443 | N22: 902.27129 | O22: 163 | P22: 328.5601 | Q22: 273 | R22: 612 | S22: 1239.52248 | T22: 169 | U22: 337.25119 | V22: 273 | W22: 612 | X22: 1239.52248 | AB22: 612 | AC22: 1239.52248 | AG22: 612 | AH22: 1239.52248 | AL22: 612 | AM22: 1239.52248 | AQ22: 612 | AR22: 1239.52248 | AV22: 612 | AW22: 1239.52248 | BA22: 612 | BB22: 1239.52248 | BF22: 612 | BG22: 1239.52248 | BK22: 612 | BL22: 1239.52248
A23: Январь | B23: ДВН | C23: ЦРБ Тарусского района | D23: 34 | E23: 68.98038 | F23: 23 | G23: =Таблица1[[#This Row],[Оплачено случаев]]-Таблица1[[#This Row],[План ДВН, чел.]] -> 11 | H23: =ROUND(Таблица1[[#This Row],[Оплачено случаев]]/Таблица1[[#This Row],[План ДВН, чел.]]*100,1) -> 147.8 | J23: 34 | K23: 68.98038 | L23: 23 | M23: 66 | N23: 133.67786 | O23: 32 | P23: 64.69748 | Q23: 51 | R23: 122 | S23: 246.96983 | T23: 56 | U23: 113.29197 | V23: 50 | W23: 122 | X23: 246.96983 | AB23: 122 | AC23: 246.96983 | AG23: 122 | AH23: 246.96983 | AL23: 122 | AM23: 246.96983 | AQ23: 122 | AR23: 246.96983 | AV23: 122 | AW23: 246.96983 | BA23: 122 | BB23: 246.96983 | BF23: 122 | BG23: 246.96983 | BK23: 122 | BL23: 246.96983
A24: Февраль | B24: ДВН | C24: ЦМБ № 1 | D24: =O4 -> 146 | E24: =P4 -> 304.95189 | F24: =Q4 -> 300 | G24: =Таблица1[[#This Row],[Оплачено случаев]]-Таблица1[[#This Row],[План ДВН, чел.]] -> -154 | H24: =ROUND(Таблица1[[#This Row],[Оплачено случаев]]/Таблица1[[#This Row],[План ДВН, чел.]]*100,1) -> 48.7 | J24: =SUM(J4:J23) -> 4480 | K24: 9137.64828 | L24: 4378 | M24: 9469 | N24: 19303.80343 | O24: 4989 | P24: 10166.15515 | Q24: 6193 | R24: 15700 | S24: 31682.62505 | T24: 6231 | U24: 12378.82162 | V24: 6516 | W24: 15700 | X24: 31682.62505 | Y24: 0 | Z24: 0 | AA24: 0 | AB24: 15700 | AC24: 31682.62505 | AD24: 0 | AE24: 0 | AF24: 0 | AG24: 15700 | AH24: 31682.62505 | AI24: 0 | AJ24: 0 | AK24: 0 | AL24: 15700 | AM24: 31682.62505 | AN24: 0 | AO24: 0 | AP24: =SUM(AP4:AP23) -> 0 | AQ24: 15700 | AR24: 31682.62505 | AS24: 0 | AT24: 0 | AU24: 0 | AV24: 15700 | AW24: 31682.62505 | AX24: 0 | AY24: 0 | AZ24: 0 | BA24: 15700 | BB24: 31682.62505 | BC24: 0 | BD24: 0 | BE24: 0 | BF24: 15700 | BG24: 31682.62505 | BH24: 0 | BI24: 0 | BJ24: 0 | BK24: 15700 | BL24: 31682.62505 | BM24: 0 | BN24: 0
A25: Февраль | B25: ДВН | C25: ЦМБ № 2 | D25: 297 | E25: 601.24634 | F25: 529 | G25: =Таблица1[[#This Row],[Оплачено случаев]]-Таблица1[[#This Row],[План ДВН, чел.]] -> -232 | H25: =ROUND(Таблица1[[#This Row],[Оплачено случаев]]/Таблица1[[#This Row],[План ДВН, чел.]]*100,1) -> 56.1 | N25: =N24*1000/M24 -> 2038.631686
A26: Февраль | B26: ДВН | C26: ЦМБ № 3 | D26: 91 | E26: 180.13074 | F26: 148 | G26: =Таблица1[[#This Row],[Оплачено случаев]]-Таблица1[[#This Row],[План ДВН, чел.]] -> -57 | H26: =ROUND(Таблица1[[#This Row],[Оплачено случаев]]/Таблица1[[#This Row],[План ДВН, чел.]]*100,1) -> 61.5
A27: Февраль | B27: ДВН | C27: ЦМБ № 4 | D27: 17 | E27: 35.07137 | F27: 137 | G27: =Таблица1[[#This Row],[Оплачено случаев]]-Таблица1[[#This Row],[План ДВН, чел.]] -> -120 | H27: =ROUND(Таблица1[[#This Row],[Оплачено случаев]]/Таблица1[[#This Row],[План ДВН, чел.]]*100,1) -> 12.4
A28: Февраль | B28: ДВН | C28: ЦМБ № 5 | D28: 254 | E28: 509.70412 | F28: 144 | G28: =Таблица1[[#This Row],[Оплачено случаев]]-Таблица1[[#This Row],[План ДВН, чел.]] -> 110 | H28: =ROUND(Таблица1[[#This Row],[Оплачено случаев]]/Таблица1[[#This Row],[План ДВН, чел.]]*100,1) -> 176.4 | AE28: =AE4/1000 -> 0 | AJ28: =AJ4/1000 -> 0 | AO28: =AO4/1000 -> 0 | AT28: =AT4/1000 -> 0 | AY28: =AY4/1000 -> 0 | BD28: =BD4/1000 -> 0 | BI28: =BI4/1000 -> 0
A29: Февраль | B29: ДВН | C29: ЦМБ № 6 | D29: 239 | E29: 464.29766 | F29: 300 | G29: =Таблица1[[#This Row],[Оплачено случаев]]-Таблица1[[#This Row],[План ДВН, чел.]] -> -61 | H29: =ROUND(Таблица1[[#This Row],[Оплачено случаев]]/Таблица1[[#This Row],[План ДВН, чел.]]*100,1) -> 79.7 | AE29: =AE5/1000 -> 0 | AJ29: =AJ5/1000 -> 0 | AO29: =AO5/1000 -> 0 | AT29: =AT5/1000 -> 0 | AY29: =AY5/1000 -> 0 | BD29: =BD5/1000 -> 0 | BI29: =BI5/1000 -> 0
A30: Февраль | B30: ДВН | C30: КГБ № 5 | D30: 821 | E30: 1695.54414 | F30: 1100 | G30: =Таблица1[[#This Row],[Оплачено случаев]]-Таблица1[[#This Row],[План ДВН, чел.]] -> -279 | H30: =ROUND(Таблица1[[#This Row],[Оплачено случаев]]/Таблица1[[#This Row],[План ДВН, чел.]]*100,1) -> 74.6 | AE30: 0 | AJ30: 0 | AO30: 0 | AT30: 0 | AY30: 0 | BD30: 0 | BI30: 0
A31: Февраль | B31: ДВН | C31: КГКБ № 4 | D31: 878 | E31: 1808.71045 | F31: 912 | G31: =Таблица1[[#This Row],[Оплачено случаев]]-Таблица1[[#This Row],[План ДВН, чел.]] -> -34 | H31: =ROUND(Таблица1[[#This Row],[Оплачено случаев]]/Таблица1[[#This Row],[План ДВН, чел.]]*100,1) -> 96.3 | AE31: 0 | AJ31: 0 | AO31: 0 | AT31: 0 | AY31: 0 | BD31: 0 | BI31: 0
A32: Февраль | B32: ДВН | C32: Городская поликлиника | D32: 326 | E32: 677.54517 | F32: 456 | G32: =Таблица1[[#This Row],[Оплачено случаев]]-Таблица1[[#This Row],[План ДВН, чел.]] -> -130 | H32: =ROUND(Таблица1[[#This Row],[Оплачено случаев]]/Таблица1[[#This Row],[План ДВН, чел.]]*100,1) -> 71.5 | AE32: 0 | AJ32: 0 | AO32: 0 | AT32: 0 | AY32: 0 | BD32: 0 | BI32: 0
A33: Февраль | B33: ДВН | C33: МСЧ № 1 г. Калуги | D33: 784 | E33: 1526.8247 | F33: 620 | G33: =Таблица1[[#This Row],[Оплачено случаев]]-Таблица1[[#This Row],[План ДВН, чел.]] -> 164 | H33: =ROUND(Таблица1[[#This Row],[Оплачено случаев]]/Таблица1[[#This Row],[План ДВН, чел.]]*100,1) -> 126.5 | AE33: 0 | AJ33: 0 | AO33: 0 | AT33: 0 | AY33: 0 | BD33: 0 | BI33: 0
A34: Февраль | B34: ДВН | C34: МСЧ № 2 г. Калуги | D34: 0 | E34: 0 | F34: 1 | G34: =Таблица1[[#This Row],[Оплачено случаев]]-Таблица1[[#This Row],[План ДВН, чел.]] -> -1 | H34: =ROUND(Таблица1[[#This Row],[Оплачено случаев]]/Таблица1[[#This Row],[План ДВН, чел.]]*100,1) -> 0 | AE34: 0 | AJ34: 0 | AO34: 0 | AT34: 0 | AY34: 0 | BD34: 0 | BI34: 0
A35: Февраль | B35: ДВН | C35: МСЧ МВД | D35: 0 | E35: 0 | F35: 0 | G35: =Таблица1[[#This Row],[Оплачено случаев]]-Таблица1[[#This Row],[План ДВН, чел.]] -> 0 | H35: =ROUND(Таблица1[[#This Row],[Оплачено случаев]]/Таблица1[[#This Row],[План ДВН, чел.]]*100,1) ->  | AE35: 0 | AJ35: 0 | AO35: 0 | AT35: 0 | AY35: 0 | BD35: 0 | BI35: 0
A36: Февраль | B36: ДВН | C36: ЧУЗ "Больница "РЖД - Медицина" | D36: 24 | E36: 46.3998 | F36: 36 | G36: =Таблица1[[#This Row],[Оплачено случаев]]-Таблица1[[#This Row],[План ДВН, чел.]] -> -12 | H36: =ROUND(Таблица1[[#This Row],[Оплачено случаев]]/Таблица1[[#This Row],[План ДВН, чел.]]*100,1) -> 66.7 | AE36: 0 | AJ36: 0 | AO36: 0 | AT36: 0 | AY36: 0 | BD36: 0 | BI36: 0
A37: Февраль | B37: ДВН | C37: КБ № 8 ФМБА | D37: 597 | E37: 1235.82849 | F37: 725 | G37: =Таблица1[[#This Row],[Оплачено случаев]]-Таблица1[[#This Row],[План ДВН, чел.]] -> -128 | H37: =ROUND(Таблица1[[#This Row],[Оплачено случаев]]/Таблица1[[#This Row],[План ДВН, чел.]]*100,1) -> 82.3 | AE37: 0 | AJ37: 0 | AO37: 0 | AT37: 0 | AY37: 0 | BD37: 0 | BI37: 0
A38: Февраль | B38: ДВН | C38: ЦРБ Бабынинского района | D38: 69 | E38: 136.81164 | F38: 101 | G38: =Таблица1[[#This Row],[Оплачено случаев]]-Таблица1[[#This Row],[План ДВН, чел.]] -> -32 | H38: =ROUND(Таблица1[[#This Row],[Оплачено случаев]]/Таблица1[[#This Row],[План ДВН, чел.]]*100,1) -> 68.3 | AE38: 0 | AJ38: 0 | AO38: 0 | AT38: 0 | AY38: 0 | BD38: 0 | BI38: 0
A39: Февраль | B39: ДВН | C39: ЦРБ Боровского района | D39: 184 | E39: 409.95885 | F39: 200 | G39: =Таблица1[[#This Row],[Оплачено случаев]]-Таблица1[[#This Row],[План ДВН, чел.]] -> -16 | H39: =ROUND(Таблица1[[#This Row],[Оплачено случаев]]/Таблица1[[#This Row],[План ДВН, чел.]]*100,1) -> 92 | AE39: 0 | AJ39: 0 | AO39: 0 | AT39: 0 | AY39: 0 | BD39: 0 | BI39: 0
A40: Февраль | B40: ДВН | C40: ЦРБ Жуковского района | D40: 55 | E40: 114.57625 | F40: 110 | G40: =Таблица1[[#This Row],[Оплачено случаев]]-Таблица1[[#This Row],[План ДВН, чел.]] -> -55 | H40: =ROUND(Таблица1[[#This Row],[Оплачено случаев]]/Таблица1[[#This Row],[План ДВН, чел.]]*100,1) -> 50 | AE40: 0 | AJ40: 0 | AO40: 0 | AT40: 0 | AY40: 0 | BD40: 0 | BI40: 0
A41: Февраль | B41: ДВН | C41: ГП "Город Кременки" | D41: 12 | E41: 25.29596 | F41: 50 | G41: =Таблица1[[#This Row],[Оплачено случаев]]-Таблица1[[#This Row],[План ДВН, чел.]] -> -38 | H41: =ROUND(Таблица1[[#This Row],[Оплачено случаев]]/Таблица1[[#This Row],[План ДВН, чел.]]*100,1) -> 24 | AE41: 0 | AJ41: 0 | AO41: 0 | AT41: 0 | AY41: 0 | BD41: 0 | BI41: 0
A42: Февраль | B42: ДВН | C42: ЦРБ Малоярославецкого района | D42: 163 | E42: 328.5601 | F42: 273 | G42: =Таблица1[[#This Row],[Оплачено случаев]]-Таблица1[[#This Row],[План ДВН, чел.]] -> -110 | H42: =ROUND(Таблица1[[#This Row],[Оплачено случаев]]/Таблица1[[#This Row],[План ДВН, чел.]]*100,1) -> 59.7 | AE42: 0 | AJ42: 0 | AO42: 0 | AT42: 0 | AY42: 0 | BD42: 0 | BI42: 0
A43: Февраль | B43: ДВН | C43: ЦРБ Тарусского района | D43: 32 | E43: 64.69748 | F43: 51 | G43: =Таблица1[[#This Row],[Оплачено случаев]]-Таблица1[[#This Row],[План ДВН, чел.]] -> -19 | H43: =ROUND(Таблица1[[#This Row],[Оплачено случаев]]/Таблица1[[#This Row],[План ДВН, чел.]]*100,1) -> 62.7 | AE43: 0 | AJ43: 0 | AO43: 0 | AT43: 0 | AY43: 0 | BD43: 0 | BI43: 0
A44: Март | B44: ДВН | C44: ЦМБ № 1 | D44: =T4 -> 183 | E44: =U4 -> 380.88663 | F44: =V4 -> 336 | G44: =Таблица1[[#This Row],[Оплачено случаев]]-Таблица1[[#This Row],[План ДВН, чел.]] -> -153 | H44: =ROUND(Таблица1[[#This Row],[Оплачено случаев]]/Таблица1[[#This Row],[План ДВН, чел.]]*100,1) -> 54.5 | AE44: 0 | AJ44: 0 | AO44: 0 | AT44: 0 | AY44: 0 | BD44: 0 | BI44: 0
A45: Март | B45: ДВН | C45: ЦМБ № 2 | D45: 338 | E45: 696.24314 | F45: 530 | G45: =Таблица1[[#This Row],[Оплачено случаев]]-Таблица1[[#This Row],[План ДВН, чел.]] -> -192 | H45: =ROUND(Таблица1[[#This Row],[Оплачено случаев]]/Таблица1[[#This Row],[План ДВН, чел.]]*100,1) -> 63.8 | AE45: 0 | AJ45: 0 | AO45: 0 | AT45: 0 | AY45: 0 | BD45: 0 | BI45: 0
A46: Март | B46: ДВН | C46: ЦМБ № 3 | D46: 104 | E46: 193.76356 | F46: 244 | G46: =Таблица1[[#This Row],[Оплачено случаев]]-Таблица1[[#This Row],[План ДВН, чел.]] -> -140 | H46: =ROUND(Таблица1[[#This Row],[Оплачено случаев]]/Таблица1[[#This Row],[План ДВН, чел.]]*100,1) -> 42.6 | AE46: 0 | AJ46: 0 | AO46: 0 | AT46: 0 | AY46: 0 | BD46: 0 | BI46: 0
A47: Март | B47: ДВН | C47: ЦМБ № 4 | D47: 62 | E47: 128.36099 | F47: 137 | G47: =Таблица1[[#This Row],[Оплачено случаев]]-Таблица1[[#This Row],[План ДВН, чел.]] -> -75 | H47: =ROUND(Таблица1[[#This Row],[Оплачено случаев]]/Таблица1[[#This Row],[План ДВН, чел.]]*100,1) -> 45.3 | AE47: 0 | AJ47: 0 | AO47: 0 | AT47: 0 | AY47: 0 | BD47: 0 | BI47: 0
A48: Март | B48: ДВН | C48: ЦМБ № 5 | D48: 226 | E48: 441.16498 | F48: 146 | G48: =Таблица1[[#This Row],[Оплачено случаев]]-Таблица1[[#This Row],[План ДВН, чел.]] -> 80 | H48: =ROUND(Таблица1[[#This Row],[Оплачено случаев]]/Таблица1[[#This Row],[План ДВН, чел.]]*100,1) -> 154.8
A49: Март | B49: ДВН | C49: ЦМБ № 6 | D49: 349 | E49: 678.03838 | F49: 350 | G49: =Таблица1[[#This Row],[Оплачено случаев]]-Таблица1[[#This Row],[План ДВН, чел.]] -> -1 | H49: =ROUND(Таблица1[[#This Row],[Оплачено случаев]]/Таблица1[[#This Row],[План ДВН, чел.]]*100,1) -> 99.7
A50: Март | B50: ДВН | C50: КГБ № 5 | D50: 1031 | E50: 2146.95437 | F50: 1100 | G50: =Таблица1[[#This Row],[Оплачено случаев]]-Таблица1[[#This Row],[План ДВН, чел.]] -> -69 | H50: =ROUND(Таблица1[[#This Row],[Оплачено случаев]]/Таблица1[[#This Row],[План ДВН, чел.]]*100,1) -> 93.7
A51: Март | B51: ДВН | C51: КГКБ № 4 | D51: 1150 | E51: 2314.92347 | F51: 912 | G51: =Таблица1[[#This Row],[Оплачено случаев]]-Таблица1[[#This Row],[План ДВН, чел.]] -> 238 | H51: =ROUND(Таблица1[[#This Row],[Оплачено случаев]]/Таблица1[[#This Row],[План ДВН, чел.]]*100,1) -> 126.1
A52: Март | B52: ДВН | C52: Городская поликлиника | D52: 413 | E52: 819.05748 | F52: 456 | G52: =Таблица1[[#This Row],[Оплачено случаев]]-Таблица1[[#This Row],[План ДВН, чел.]] -> -43 | H52: =ROUND(Таблица1[[#This Row],[Оплачено случаев]]/Таблица1[[#This Row],[План ДВН, чел.]]*100,1) -> 90.6
A53: Март | B53: ДВН | C53: МСЧ № 1 г. Калуги | D53: 830 | E53: 1417.19897 | F53: 600 | G53: =Таблица1[[#This Row],[Оплачено случаев]]-Таблица1[[#This Row],[План ДВН, чел.]] -> 230 | H53: =ROUND(Таблица1[[#This Row],[Оплачено случаев]]/Таблица1[[#This Row],[План ДВН, чел.]]*100,1) -> 138.3
A54: Март | B54: ДВН | C54: МСЧ № 2 г. Калуги | D54: 1 | E54: 2.46974 | F54: 0 | G54: =Таблица1[[#This Row],[Оплачено случаев]]-Таблица1[[#This Row],[План ДВН, чел.]] -> 1 | H54: =ROUND(Таблица1[[#This Row],[Оплачено случаев]]/Таблица1[[#This Row],[План ДВН, чел.]]*100,1) -> 
A55: Март | B55: ДВН | C55: МСЧ МВД | D55: 0 | E55: 0 | F55: 0 | G55: =Таблица1[[#This Row],[Оплачено случаев]]-Таблица1[[#This Row],[План ДВН, чел.]] -> 0 | H55: =ROUND(Таблица1[[#This Row],[Оплачено случаев]]/Таблица1[[#This Row],[План ДВН, чел.]]*100,1) -> 
A56: Март | B56: ДВН | C56: ЧУЗ "Больница "РЖД - Медицина" | D56: 36 | E56: 72.563 | F56: 36 | G56: =Таблица1[[#This Row],[Оплачено случаев]]-Таблица1[[#This Row],[План ДВН, чел.]] -> 0 | H56: =ROUND(Таблица1[[#This Row],[Оплачено случаев]]/Таблица1[[#This Row],[План ДВН, чел.]]*100,1) -> 100
A57: Март | B57: ДВН | C57: КБ № 8 ФМБА | D57: 564 | E57: 1137.67446 | F57: 875 | G57: =Таблица1[[#This Row],[Оплачено случаев]]-Таблица1[[#This Row],[План ДВН, чел.]] -> -311 | H57: =ROUND(Таблица1[[#This Row],[Оплачено случаев]]/Таблица1[[#This Row],[План ДВН, чел.]]*100,1) -> 64.5
A58: Март | B58: ДВН | C58: ЦРБ Бабынинского района | D58: 114 | E58: 220.28821 | F58: 101 | G58: =Таблица1[[#This Row],[Оплачено случаев]]-Таблица1[[#This Row],[План ДВН, чел.]] -> 13 | H58: =ROUND(Таблица1[[#This Row],[Оплачено случаев]]/Таблица1[[#This Row],[План ДВН, чел.]]*100,1) -> 112.9
A59: Март | B59: ДВН | C59: ЦРБ Боровского района | D59: 297 | E59: 645.17419 | F59: 200 | G59: =Таблица1[[#This Row],[Оплачено случаев]]-Таблица1[[#This Row],[План ДВН, чел.]] -> 97 | H59: =ROUND(Таблица1[[#This Row],[Оплачено случаев]]/Таблица1[[#This Row],[План ДВН, чел.]]*100,1) -> 148.5
A60: Март | B60: ДВН | C60: ЦРБ Жуковского района | D60: 289 | E60: 592.36276 | F60: 120 | G60: =Таблица1[[#This Row],[Оплачено случаев]]-Таблица1[[#This Row],[План ДВН, чел.]] -> 169 | H60: =ROUND(Таблица1[[#This Row],[Оплачено случаев]]/Таблица1[[#This Row],[План ДВН, чел.]]*100,1) -> 240.8
A61: Март | B61: ДВН | C61: ГП "Город Кременки" | D61: 19 | E61: 41.15413 | F61: 50 | G61: =Таблица1[[#This Row],[Оплачено случаев]]-Таблица1[[#This Row],[План ДВН, чел.]] -> -31 | H61: =ROUND(Таблица1[[#This Row],[Оплачено случаев]]/Таблица1[[#This Row],[План ДВН, чел.]]*100,1) -> 38
A62: Март | B62: ДВН | C62: ЦРБ Малоярославецкого района | D62: 169 | E62: 337.25119 | F62: 273 | G62: =Таблица1[[#This Row],[Оплачено случаев]]-Таблица1[[#This Row],[План ДВН, чел.]] -> -104 | H62: =ROUND(Таблица1[[#This Row],[Оплачено случаев]]/Таблица1[[#This Row],[План ДВН, чел.]]*100,1) -> 61.9
A63: Март | B63: ДВН | C63: ЦРБ Тарусского района | D63: 56 | E63: 113.29197 | F63: 50 | G63: =Таблица1[[#This Row],[Оплачено случаев]]-Таблица1[[#This Row],[План ДВН, чел.]] -> 6 | H63: =ROUND(Таблица1[[#This Row],[Оплачено случаев]]/Таблица1[[#This Row],[План ДВН, чел.]]*100,1) -> 112
A64: Апрель | B64: ДВН | C64: ЦМБ № 1 | D64: =Y4 -> 0 | E64: =Z4 -> 0 | F64: =AA4 -> 0 | G64: =Таблица1[[#This Row],[Оплачено случаев]]-Таблица1[[#This Row],[План ДВН, чел.]] -> 0 | H64: =ROUND(Таблица1[[#This Row],[Оплачено случаев]]/Таблица1[[#This Row],[План ДВН, чел.]]*100,1) -> 
A65: Апрель | B65: ДВН | C65: ЦМБ № 2 | D65: 0 | E65: 0 | F65: 0 | G65: =Таблица1[[#This Row],[Оплачено случаев]]-Таблица1[[#This Row],[План ДВН, чел.]] -> 0 | H65: =ROUND(Таблица1[[#This Row],[Оплачено случаев]]/Таблица1[[#This Row],[План ДВН, чел.]]*100,1) -> 
A66: Апрель | B66: ДВН | C66: ЦМБ № 3 | D66: 0 | E66: 0 | F66: 0 | G66: =Таблица1[[#This Row],[Оплачено случаев]]-Таблица1[[#This Row],[План ДВН, чел.]] -> 0 | H66: =ROUND(Таблица1[[#This Row],[Оплачено случаев]]/Таблица1[[#This Row],[План ДВН, чел.]]*100,1) -> 
A67: Апрель | B67: ДВН | C67: ЦМБ № 4 | D67: 0 | E67: 0 | F67: 0 | G67: =Таблица1[[#This Row],[Оплачено случаев]]-Таблица1[[#This Row],[План ДВН, чел.]] -> 0 | H67: =ROUND(Таблица1[[#This Row],[Оплачено случаев]]/Таблица1[[#This Row],[План ДВН, чел.]]*100,1) -> 
A68: Апрель | B68: ДВН | C68: ЦМБ № 5 | D68: 0 | E68: 0 | F68: 0 | G68: =Таблица1[[#This Row],[Оплачено случаев]]-Таблица1[[#This Row],[План ДВН, чел.]] -> 0 | H68: =ROUND(Таблица1[[#This Row],[Оплачено случаев]]/Таблица1[[#This Row],[План ДВН, чел.]]*100,1) -> 
A69: Апрель | B69: ДВН | C69: ЦМБ № 6 | D69: 0 | E69: 0 | F69: 0 | G69: =Таблица1[[#This Row],[Оплачено случаев]]-Таблица1[[#This Row],[План ДВН, чел.]] -> 0 | H69: =ROUND(Таблица1[[#This Row],[Оплачено случаев]]/Таблица1[[#This Row],[План ДВН, чел.]]*100,1) -> 
A70: Апрель | B70: ДВН | C70: КГБ № 5 | D70: 0 | E70: 0 | F70: 0 | G70: =Таблица1[[#This Row],[Оплачено случаев]]-Таблица1[[#This Row],[План ДВН, чел.]] -> 0 | H70: =ROUND(Таблица1[[#This Row],[Оплачено случаев]]/Таблица1[[#This Row],[План ДВН, чел.]]*100,1) -> 
A71: Апрель | B71: ДВН | C71: КГКБ № 4 | D71: 0 | E71: 0 | F71: 0 | G71: =Таблица1[[#This Row],[Оплачено случаев]]-Таблица1[[#This Row],[План ДВН, чел.]] -> 0 | H71: =ROUND(Таблица1[[#This Row],[Оплачено случаев]]/Таблица1[[#This Row],[План ДВН, чел.]]*100,1) -> 
A72: Апрель | B72: ДВН | C72: Городская поликлиника | D72: 0 | E72: 0 | F72: 0 | G72: =Таблица1[[#This Row],[Оплачено случаев]]-Таблица1[[#This Row],[План ДВН, чел.]] -> 0 | H72: =ROUND(Таблица1[[#This Row],[Оплачено случаев]]/Таблица1[[#This Row],[План ДВН, чел.]]*100,1) -> 
A73: Апрель | B73: ДВН | C73: МСЧ № 1 г. Калуги | D73: 0 | E73: 0 | F73: 0 | G73: =Таблица1[[#This Row],[Оплачено случаев]]-Таблица1[[#This Row],[План ДВН, чел.]] -> 0 | H73: =ROUND(Таблица1[[#This Row],[Оплачено случаев]]/Таблица1[[#This Row],[План ДВН, чел.]]*100,1) -> 
A74: Апрель | B74: ДВН | C74: МСЧ № 2 г. Калуги | D74: 0 | E74: 0 | F74: 0 | G74: =Таблица1[[#This Row],[Оплачено случаев]]-Таблица1[[#This Row],[План ДВН, чел.]] -> 0 | H74: =ROUND(Таблица1[[#This Row],[Оплачено случаев]]/Таблица1[[#This Row],[План ДВН, чел.]]*100,1) -> 
A75: Апрель | B75: ДВН | C75: МСЧ МВД | D75: 0 | E75: 0 | F75: 0 | G75: =Таблица1[[#This Row],[Оплачено случаев]]-Таблица1[[#This Row],[План ДВН, чел.]] -> 0 | H75: =ROUND(Таблица1[[#This Row],[Оплачено случаев]]/Таблица1[[#This Row],[План ДВН, чел.]]*100,1) -> 
A76: Апрель | B76: ДВН | C76: ЧУЗ "Больница "РЖД - Медицина" | D76: 0 | E76: 0 | F76: 0 | G76: =Таблица1[[#This Row],[Оплачено случаев]]-Таблица1[[#This Row],[План ДВН, чел.]] -> 0 | H76: =ROUND(Таблица1[[#This Row],[Оплачено случаев]]/Таблица1[[#This Row],[План ДВН, чел.]]*100,1) -> 
A77: Апрель | B77: ДВН | C77: КБ № 8 ФМБА | D77: 0 | E77: 0 | F77: 0 | G77: =Таблица1[[#This Row],[Оплачено случаев]]-Таблица1[[#This Row],[План ДВН, чел.]] -> 0 | H77: =ROUND(Таблица1[[#This Row],[Оплачено случаев]]/Таблица1[[#This Row],[План ДВН, чел.]]*100,1) -> 
A78: Апрель | B78: ДВН | C78: ЦРБ Бабынинского района | D78: 0 | E78: 0 | F78: 0 | G78: =Таблица1[[#This Row],[Оплачено случаев]]-Таблица1[[#This Row],[План ДВН, чел.]] -> 0 | H78: =ROUND(Таблица1[[#This Row],[Оплачено случаев]]/Таблица1[[#This Row],[План ДВН, чел.]]*100,1) -> 
A79: Апрель | B79: ДВН | C79: ЦРБ Боровского района | D79: 0 | E79: 0 | F79: 0 | G79: =Таблица1[[#This Row],[Оплачено случаев]]-Таблица1[[#This Row],[План ДВН, чел.]] -> 0 | H79: =ROUND(Таблица1[[#This Row],[Оплачено случаев]]/Таблица1[[#This Row],[План ДВН, чел.]]*100,1) -> 
A80: Апрель | B80: ДВН | C80: ЦРБ Жуковского района | D80: 0 | E80: 0 | F80: 0 | G80: =Таблица1[[#This Row],[Оплачено случаев]]-Таблица1[[#This Row],[План ДВН, чел.]] -> 0 | H80: =ROUND(Таблица1[[#This Row],[Оплачено случаев]]/Таблица1[[#This Row],[План ДВН, чел.]]*100,1) -> 
A81: Апрель | B81: ДВН | C81: ГП "Город Кременки" | D81: 0 | E81: 0 | F81: 0 | G81: =Таблица1[[#This Row],[Оплачено случаев]]-Таблица1[[#This Row],[План ДВН, чел.]] -> 0 | H81: =ROUND(Таблица1[[#This Row],[Оплачено случаев]]/Таблица1[[#This Row],[План ДВН, чел.]]*100,1) -> 
A82: Апрель | B82: ДВН | C82: ЦРБ Малоярославецкого района | D82: 0 | E82: 0 | F82: 0 | G82: =Таблица1[[#This Row],[Оплачено случаев]]-Таблица1[[#This Row],[План ДВН, чел.]] -> 0 | H82: =ROUND(Таблица1[[#This Row],[Оплачено случаев]]/Таблица1[[#This Row],[План ДВН, чел.]]*100,1) -> 
A83: Апрель | B83: ДВН | C83: ЦРБ Тарусского района | D83: 0 | E83: 0 | F83: 0 | G83: =Таблица1[[#This Row],[Оплачено случаев]]-Таблица1[[#This Row],[План ДВН, чел.]] -> 0 | H83: =ROUND(Таблица1[[#This Row],[Оплачено случаев]]/Таблица1[[#This Row],[План ДВН, чел.]]*100,1) -> 
A84: Май | B84: ДВН | C84: ЦМБ № 1 | D84: =AD4 -> 0 | E84: =AE4 -> 0 | F84: =AF4 -> 0 | G84: =Таблица1[[#This Row],[Оплачено случаев]]-Таблица1[[#This Row],[План ДВН, чел.]] -> 0 | H84: =ROUND(Таблица1[[#This Row],[Оплачено случаев]]/Таблица1[[#This Row],[План ДВН, чел.]]*100,1) -> 
A85: Май | B85: ДВН | C85: ЦМБ № 2 | D85: 0 | E85: 0 | F85: 0 | G85: =Таблица1[[#This Row],[Оплачено случаев]]-Таблица1[[#This Row],[План ДВН, чел.]] -> 0 | H85: =ROUND(Таблица1[[#This Row],[Оплачено случаев]]/Таблица1[[#This Row],[План ДВН, чел.]]*100,1) -> 
A86: Май | B86: ДВН | C86: ЦМБ № 3 | D86: 0 | E86: 0 | F86: 0 | G86: =Таблица1[[#This Row],[Оплачено случаев]]-Таблица1[[#This Row],[План ДВН, чел.]] -> 0 | H86: =ROUND(Таблица1[[#This Row],[Оплачено случаев]]/Таблица1[[#This Row],[План ДВН, чел.]]*100,1) -> 
A87: Май | B87: ДВН | C87: ЦМБ № 4 | D87: 0 | E87: 0 | F87: 0 | G87: =Таблица1[[#This Row],[Оплачено случаев]]-Таблица1[[#This Row],[План ДВН, чел.]] -> 0 | H87: =ROUND(Таблица1[[#This Row],[Оплачено случаев]]/Таблица1[[#This Row],[План ДВН, чел.]]*100,1) -> 
A88: Май | B88: ДВН | C88: ЦМБ № 5 | D88: 0 | E88: 0 | F88: 0 | G88: =Таблица1[[#This Row],[Оплачено случаев]]-Таблица1[[#This Row],[План ДВН, чел.]] -> 0 | H88: =ROUND(Таблица1[[#This Row],[Оплачено случаев]]/Таблица1[[#This Row],[План ДВН, чел.]]*100,1) -> 
A89: Май | B89: ДВН | C89: ЦМБ № 6 | D89: 0 | E89: 0 | F89: 0 | G89: =Таблица1[[#This Row],[Оплачено случаев]]-Таблица1[[#This Row],[План ДВН, чел.]] -> 0 | H89: =ROUND(Таблица1[[#This Row],[Оплачено случаев]]/Таблица1[[#This Row],[План ДВН, чел.]]*100,1) -> 
A90: Май | B90: ДВН | C90: КГБ № 5 | D90: 0 | E90: 0 | F90: 0 | G90: =Таблица1[[#This Row],[Оплачено случаев]]-Таблица1[[#This Row],[План ДВН, чел.]] -> 0 | H90: =ROUND(Таблица1[[#This Row],[Оплачено случаев]]/Таблица1[[#This Row],[План ДВН, чел.]]*100,1) -> 
A91: Май | B91: ДВН | C91: КГКБ № 4 | D91: 0 | E91: 0 | F91: 0 | G91: =Таблица1[[#This Row],[Оплачено случаев]]-Таблица1[[#This Row],[План ДВН, чел.]] -> 0 | H91: =ROUND(Таблица1[[#This Row],[Оплачено случаев]]/Таблица1[[#This Row],[План ДВН, чел.]]*100,1) -> 
A92: Май | B92: ДВН | C92: Городская поликлиника | D92: 0 | E92: 0 | F92: 0 | G92: =Таблица1[[#This Row],[Оплачено случаев]]-Таблица1[[#This Row],[План ДВН, чел.]] -> 0 | H92: =ROUND(Таблица1[[#This Row],[Оплачено случаев]]/Таблица1[[#This Row],[План ДВН, чел.]]*100,1) -> 
A93: Май | B93: ДВН | C93: МСЧ № 1 г. Калуги | D93: 0 | E93: 0 | F93: 0 | G93: =Таблица1[[#This Row],[Оплачено случаев]]-Таблица1[[#This Row],[План ДВН, чел.]] -> 0 | H93: =ROUND(Таблица1[[#This Row],[Оплачено случаев]]/Таблица1[[#This Row],[План ДВН, чел.]]*100,1) -> 
A94: Май | B94: ДВН | C94: МСЧ № 2 г. Калуги | D94: 0 | E94: 0 | F94: 0 | G94: =Таблица1[[#This Row],[Оплачено случаев]]-Таблица1[[#This Row],[План ДВН, чел.]] -> 0 | H94: =ROUND(Таблица1[[#This Row],[Оплачено случаев]]/Таблица1[[#This Row],[План ДВН, чел.]]*100,1) -> 
A95: Май | B95: ДВН | C95: МСЧ МВД | D95: 0 | E95: 0 | F95: 0 | G95: =Таблица1[[#This Row],[Оплачено случаев]]-Таблица1[[#This Row],[План ДВН, чел.]] -> 0 | H95: =ROUND(Таблица1[[#This Row],[Оплачено случаев]]/Таблица1[[#This Row],[План ДВН, чел.]]*100,1) -> 
A96: Май | B96: ДВН | C96: ЧУЗ "Больница "РЖД - Медицина" | D96: 0 | E96: 0 | F96: 0 | G96: =Таблица1[[#This Row],[Оплачено случаев]]-Таблица1[[#This Row],[План ДВН, чел.]] -> 0 | H96: =ROUND(Таблица1[[#This Row],[Оплачено случаев]]/Таблица1[[#This Row],[План ДВН, чел.]]*100,1) -> 
A97: Май | B97: ДВН | C97: КБ № 8 ФМБА | D97: 0 | E97: 0 | F97: 0 | G97: =Таблица1[[#This Row],[Оплачено случаев]]-Таблица1[[#This Row],[План ДВН, чел.]] -> 0 | H97: =ROUND(Таблица1[[#This Row],[Оплачено случаев]]/Таблица1[[#This Row],[План ДВН, чел.]]*100,1) -> 
A98: Май | B98: ДВН | C98: ЦРБ Бабынинского района | D98: 0 | E98: 0 | F98: 0 | G98: =Таблица1[[#This Row],[Оплачено случаев]]-Таблица1[[#This Row],[План ДВН, чел.]] -> 0 | H98: =ROUND(Таблица1[[#This Row],[Оплачено случаев]]/Таблица1[[#This Row],[План ДВН, чел.]]*100,1) -> 
A99: Май | B99: ДВН | C99: ЦРБ Боровского района | D99: 0 | E99: 0 | F99: 0 | G99: =Таблица1[[#This Row],[Оплачено случаев]]-Таблица1[[#This Row],[План ДВН, чел.]] -> 0 | H99: =ROUND(Таблица1[[#This Row],[Оплачено случаев]]/Таблица1[[#This Row],[План ДВН, чел.]]*100,1) -> 
A100: Май | B100: ДВН | C100: ЦРБ Жуковского района | D100: 0 | E100: 0 | F100: 0 | G100: =Таблица1[[#This Row],[Оплачено случаев]]-Таблица1[[#This Row],[План ДВН, чел.]] -> 0 | H100: =ROUND(Таблица1[[#This Row],[Оплачено случаев]]/Таблица1[[#This Row],[План ДВН, чел.]]*100,1) -> 
A101: Май | B101: ДВН | C101: ГП "Город Кременки" | D101: 0 | E101: 0 | F101: 0 | G101: =Таблица1[[#This Row],[Оплачено случаев]]-Таблица1[[#This Row],[План ДВН, чел.]] -> 0 | H101: =ROUND(Таблица1[[#This Row],[Оплачено случаев]]/Таблица1[[#This Row],[План ДВН, чел.]]*100,1) -> 
A102: Май | B102: ДВН | C102: ЦРБ Малоярославецкого района | D102: 0 | E102: 0 | F102: 0 | G102: =Таблица1[[#This Row],[Оплачено случаев]]-Таблица1[[#This Row],[План ДВН, чел.]] -> 0 | H102: =ROUND(Таблица1[[#This Row],[Оплачено случаев]]/Таблица1[[#This Row],[План ДВН, чел.]]*100,1) -> 
A103: Май | B103: ДВН | C103: ЦРБ Тарусского района | D103: 0 | E103: 0 | F103: 0 | G103: =Таблица1[[#This Row],[Оплачено случаев]]-Таблица1[[#This Row],[План ДВН, чел.]] -> 0 | H103: =ROUND(Таблица1[[#This Row],[Оплачено случаев]]/Таблица1[[#This Row],[План ДВН, чел.]]*100,1) -> 
A104: Июнь | B104: ДВН | C104: ЦМБ № 1 | D104: =AI4 -> 0 | E104: =AJ4 -> 0 | F104: =AK4 -> 0 | G104: =Таблица1[[#This Row],[Оплачено случаев]]-Таблица1[[#This Row],[План ДВН, чел.]] -> 0 | H104: =ROUND(Таблица1[[#This Row],[Оплачено случаев]]/Таблица1[[#This Row],[План ДВН, чел.]]*100,1) -> 
A105: Июнь | B105: ДВН | C105: ЦМБ № 2 | D105: 0 | E105: 0 | F105: 0 | G105: =Таблица1[[#This Row],[Оплачено случаев]]-Таблица1[[#This Row],[План ДВН, чел.]] -> 0 | H105: =ROUND(Таблица1[[#This Row],[Оплачено случаев]]/Таблица1[[#This Row],[План ДВН, чел.]]*100,1) -> 
A106: Июнь | B106: ДВН | C106: ЦМБ № 3 | D106: 0 | E106: 0 | F106: 0 | G106: =Таблица1[[#This Row],[Оплачено случаев]]-Таблица1[[#This Row],[План ДВН, чел.]] -> 0 | H106: =ROUND(Таблица1[[#This Row],[Оплачено случаев]]/Таблица1[[#This Row],[План ДВН, чел.]]*100,1) -> 
A107: Июнь | B107: ДВН | C107: ЦМБ № 4 | D107: 0 | E107: 0 | F107: 0 | G107: =Таблица1[[#This Row],[Оплачено случаев]]-Таблица1[[#This Row],[План ДВН, чел.]] -> 0 | H107: =ROUND(Таблица1[[#This Row],[Оплачено случаев]]/Таблица1[[#This Row],[План ДВН, чел.]]*100,1) -> 
A108: Июнь | B108: ДВН | C108: ЦМБ № 5 | D108: 0 | E108: 0 | F108: 0 | G108: =Таблица1[[#This Row],[Оплачено случаев]]-Таблица1[[#This Row],[План ДВН, чел.]] -> 0 | H108: =ROUND(Таблица1[[#This Row],[Оплачено случаев]]/Таблица1[[#This Row],[План ДВН, чел.]]*100,1) -> 
A109: Июнь | B109: ДВН | C109: ЦМБ № 6 | D109: 0 | E109: 0 | F109: 0 | G109: =Таблица1[[#This Row],[Оплачено случаев]]-Таблица1[[#This Row],[План ДВН, чел.]] -> 0 | H109: =ROUND(Таблица1[[#This Row],[Оплачено случаев]]/Таблица1[[#This Row],[План ДВН, чел.]]*100,1) -> 
A110: Июнь | B110: ДВН | C110: КГБ № 5 | D110: 0 | E110: 0 | F110: 0 | G110: =Таблица1[[#This Row],[Оплачено случаев]]-Таблица1[[#This Row],[План ДВН, чел.]] -> 0 | H110: =ROUND(Таблица1[[#This Row],[Оплачено случаев]]/Таблица1[[#This Row],[План ДВН, чел.]]*100,1) -> 
A111: Июнь | B111: ДВН | C111: КГКБ № 4 | D111: 0 | E111: 0 | F111: 0 | G111: =Таблица1[[#This Row],[Оплачено случаев]]-Таблица1[[#This Row],[План ДВН, чел.]] -> 0 | H111: =ROUND(Таблица1[[#This Row],[Оплачено случаев]]/Таблица1[[#This Row],[План ДВН, чел.]]*100,1) -> 
A112: Июнь | B112: ДВН | C112: Городская поликлиника | D112: 0 | E112: 0 | F112: 0 | G112: =Таблица1[[#This Row],[Оплачено случаев]]-Таблица1[[#This Row],[План ДВН, чел.]] -> 0 | H112: =ROUND(Таблица1[[#This Row],[Оплачено случаев]]/Таблица1[[#This Row],[План ДВН, чел.]]*100,1) -> 
A113: Июнь | B113: ДВН | C113: МСЧ № 1 г. Калуги | D113: 0 | E113: 0 | F113: 0 | G113: =Таблица1[[#This Row],[Оплачено случаев]]-Таблица1[[#This Row],[План ДВН, чел.]] -> 0 | H113: =ROUND(Таблица1[[#This Row],[Оплачено случаев]]/Таблица1[[#This Row],[План ДВН, чел.]]*100,1) -> 
A114: Июнь | B114: ДВН | C114: МСЧ № 2 г. Калуги | D114: 0 | E114: 0 | F114: 0 | G114: =Таблица1[[#This Row],[Оплачено случаев]]-Таблица1[[#This Row],[План ДВН, чел.]] -> 0 | H114: =ROUND(Таблица1[[#This Row],[Оплачено случаев]]/Таблица1[[#This Row],[План ДВН, чел.]]*100,1) -> 
A115: Июнь | B115: ДВН | C115: МСЧ МВД | D115: 0 | E115: 0 | F115: 0 | G115: =Таблица1[[#This Row],[Оплачено случаев]]-Таблица1[[#This Row],[План ДВН, чел.]] -> 0 | H115: =ROUND(Таблица1[[#This Row],[Оплачено случаев]]/Таблица1[[#This Row],[План ДВН, чел.]]*100,1) -> 
A116: Июнь | B116: ДВН | C116: ЧУЗ "Больница "РЖД - Медицина" | D116: 0 | E116: 0 | F116: 0 | G116: =Таблица1[[#This Row],[Оплачено случаев]]-Таблица1[[#This Row],[План ДВН, чел.]] -> 0 | H116: =ROUND(Таблица1[[#This Row],[Оплачено случаев]]/Таблица1[[#This Row],[План ДВН, чел.]]*100,1) -> 
A117: Июнь | B117: ДВН | C117: КБ № 8 ФМБА | D117: 0 | E117: 0 | F117: 0 | G117: =Таблица1[[#This Row],[Оплачено случаев]]-Таблица1[[#This Row],[План ДВН, чел.]] -> 0 | H117: =ROUND(Таблица1[[#This Row],[Оплачено случаев]]/Таблица1[[#This Row],[План ДВН, чел.]]*100,1) -> 
A118: Июнь | B118: ДВН | C118: ЦРБ Бабынинского района | D118: 0 | E118: 0 | F118: 0 | G118: =Таблица1[[#This Row],[Оплачено случаев]]-Таблица1[[#This Row],[План ДВН, чел.]] -> 0 | H118: =ROUND(Таблица1[[#This Row],[Оплачено случаев]]/Таблица1[[#This Row],[План ДВН, чел.]]*100,1) -> 
A119: Июнь | B119: ДВН | C119: ЦРБ Боровского района | D119: 0 | E119: 0 | F119: 0 | G119: =Таблица1[[#This Row],[Оплачено случаев]]-Таблица1[[#This Row],[План ДВН, чел.]] -> 0 | H119: =ROUND(Таблица1[[#This Row],[Оплачено случаев]]/Таблица1[[#This Row],[План ДВН, чел.]]*100,1) -> 
A120: Июнь | B120: ДВН | C120: ЦРБ Жуковского района | D120: 0 | E120: 0 | F120: 0 | G120: =Таблица1[[#This Row],[Оплачено случаев]]-Таблица1[[#This Row],[План ДВН, чел.]] -> 0 | H120: =ROUND(Таблица1[[#This Row],[Оплачено случаев]]/Таблица1[[#This Row],[План ДВН, чел.]]*100,1) -> 
A121: Июнь | B121: ДВН | C121: ГП "Город Кременки" | D121: 0 | E121: 0 | F121: 0 | G121: =Таблица1[[#This Row],[Оплачено случаев]]-Таблица1[[#This Row],[План ДВН, чел.]] -> 0 | H121: =ROUND(Таблица1[[#This Row],[Оплачено случаев]]/Таблица1[[#This Row],[План ДВН, чел.]]*100,1) -> 
A122: Июнь | B122: ДВН | C122: ЦРБ Малоярославецкого района | D122: 0 | E122: 0 | F122: 0 | G122: =Таблица1[[#This Row],[Оплачено случаев]]-Таблица1[[#This Row],[План ДВН, чел.]] -> 0 | H122: =ROUND(Таблица1[[#This Row],[Оплачено случаев]]/Таблица1[[#This Row],[План ДВН, чел.]]*100,1) -> 
A123: Июнь | B123: ДВН | C123: ЦРБ Тарусского района | D123: 0 | E123: 0 | F123: 0 | G123: =Таблица1[[#This Row],[Оплачено случаев]]-Таблица1[[#This Row],[План ДВН, чел.]] -> 0 | H123: =ROUND(Таблица1[[#This Row],[Оплачено случаев]]/Таблица1[[#This Row],[План ДВН, чел.]]*100,1) -> 
A124: Июль | B124: ДВН | C124: ЦМБ № 1 | D124: =AN4 -> 0 | E124: =AO4 -> 0 | F124: =AP4 -> 0 | G124: =Таблица1[[#This Row],[Оплачено случаев]]-Таблица1[[#This Row],[План ДВН, чел.]] -> 0 | H124: =ROUND(Таблица1[[#This Row],[Оплачено случаев]]/Таблица1[[#This Row],[План ДВН, чел.]]*100,1) -> 
A125: Июль | B125: ДВН | C125: ЦМБ № 2 | D125: 0 | E125: 0 | F125: 0 | G125: =Таблица1[[#This Row],[Оплачено случаев]]-Таблица1[[#This Row],[План ДВН, чел.]] -> 0 | H125: =ROUND(Таблица1[[#This Row],[Оплачено случаев]]/Таблица1[[#This Row],[План ДВН, чел.]]*100,1) -> 
A126: Июль | B126: ДВН | C126: ЦМБ № 3 | D126: 0 | E126: 0 | F126: 0 | G126: =Таблица1[[#This Row],[Оплачено случаев]]-Таблица1[[#This Row],[План ДВН, чел.]] -> 0 | H126: =ROUND(Таблица1[[#This Row],[Оплачено случаев]]/Таблица1[[#This Row],[План ДВН, чел.]]*100,1) -> 
A127: Июль | B127: ДВН | C127: ЦМБ № 4 | D127: 0 | E127: 0 | F127: 0 | G127: =Таблица1[[#This Row],[Оплачено случаев]]-Таблица1[[#This Row],[План ДВН, чел.]] -> 0 | H127: =ROUND(Таблица1[[#This Row],[Оплачено случаев]]/Таблица1[[#This Row],[План ДВН, чел.]]*100,1) -> 
A128: Июль | B128: ДВН | C128: ЦМБ № 5 | D128: 0 | E128: 0 | F128: 0 | G128: =Таблица1[[#This Row],[Оплачено случаев]]-Таблица1[[#This Row],[План ДВН, чел.]] -> 0 | H128: =ROUND(Таблица1[[#This Row],[Оплачено случаев]]/Таблица1[[#This Row],[План ДВН, чел.]]*100,1) -> 
A129: Июль | B129: ДВН | C129: ЦМБ № 6 | D129: 0 | E129: 0 | F129: 0 | G129: =Таблица1[[#This Row],[Оплачено случаев]]-Таблица1[[#This Row],[План ДВН, чел.]] -> 0 | H129: =ROUND(Таблица1[[#This Row],[Оплачено случаев]]/Таблица1[[#This Row],[План ДВН, чел.]]*100,1) -> 
A130: Июль | B130: ДВН | C130: КГБ № 5 | D130: 0 | E130: 0 | F130: 0 | G130: =Таблица1[[#This Row],[Оплачено случаев]]-Таблица1[[#This Row],[План ДВН, чел.]] -> 0 | H130: =ROUND(Таблица1[[#This Row],[Оплачено случаев]]/Таблица1[[#This Row],[План ДВН, чел.]]*100,1) -> 
A131: Июль | B131: ДВН | C131: КГКБ № 4 | D131: 0 | E131: 0 | F131: 0 | G131: =Таблица1[[#This Row],[Оплачено случаев]]-Таблица1[[#This Row],[План ДВН, чел.]] -> 0 | H131: =ROUND(Таблица1[[#This Row],[Оплачено случаев]]/Таблица1[[#This Row],[План ДВН, чел.]]*100,1) -> 
A132: Июль | B132: ДВН | C132: Городская поликлиника | D132: 0 | E132: 0 | F132: 0 | G132: =Таблица1[[#This Row],[Оплачено случаев]]-Таблица1[[#This Row],[План ДВН, чел.]] -> 0 | H132: =ROUND(Таблица1[[#This Row],[Оплачено случаев]]/Таблица1[[#This Row],[План ДВН, чел.]]*100,1) -> 
A133: Июль | B133: ДВН | C133: МСЧ № 1 г. Калуги | D133: 0 | E133: 0 | F133: 0 | G133: =Таблица1[[#This Row],[Оплачено случаев]]-Таблица1[[#This Row],[План ДВН, чел.]] -> 0 | H133: =ROUND(Таблица1[[#This Row],[Оплачено случаев]]/Таблица1[[#This Row],[План ДВН, чел.]]*100,1) -> 
A134: Июль | B134: ДВН | C134: МСЧ № 2 г. Калуги | D134: 0 | E134: 0 | F134: 0 | G134: =Таблица1[[#This Row],[Оплачено случаев]]-Таблица1[[#This Row],[План ДВН, чел.]] -> 0 | H134: =ROUND(Таблица1[[#This Row],[Оплачено случаев]]/Таблица1[[#This Row],[План ДВН, чел.]]*100,1) -> 
A135: Июль | B135: ДВН | C135: МСЧ МВД | D135: 0 | E135: 0 | F135: 0 | G135: =Таблица1[[#This Row],[Оплачено случаев]]-Таблица1[[#This Row],[План ДВН, чел.]] -> 0 | H135: =ROUND(Таблица1[[#This Row],[Оплачено случаев]]/Таблица1[[#This Row],[План ДВН, чел.]]*100,1) -> 
A136: Июль | B136: ДВН | C136: ЧУЗ "Больница "РЖД - Медицина" | D136: 0 | E136: 0 | F136: 0 | G136: =Таблица1[[#This Row],[Оплачено случаев]]-Таблица1[[#This Row],[План ДВН, чел.]] -> 0 | H136: =ROUND(Таблица1[[#This Row],[Оплачено случаев]]/Таблица1[[#This Row],[План ДВН, чел.]]*100,1) -> 
A137: Июль | B137: ДВН | C137: КБ № 8 ФМБА | D137: 0 | E137: 0 | F137: 0 | G137: =Таблица1[[#This Row],[Оплачено случаев]]-Таблица1[[#This Row],[План ДВН, чел.]] -> 0 | H137: =ROUND(Таблица1[[#This Row],[Оплачено случаев]]/Таблица1[[#This Row],[План ДВН, чел.]]*100,1) -> 
A138: Июль | B138: ДВН | C138: ЦРБ Бабынинского района | D138: 0 | E138: 0 | F138: 0 | G138: =Таблица1[[#This Row],[Оплачено случаев]]-Таблица1[[#This Row],[План ДВН, чел.]] -> 0 | H138: =ROUND(Таблица1[[#This Row],[Оплачено случаев]]/Таблица1[[#This Row],[План ДВН, чел.]]*100,1) -> 
A139: Июль | B139: ДВН | C139: ЦРБ Боровского района | D139: 0 | E139: 0 | F139: 0 | G139: =Таблица1[[#This Row],[Оплачено случаев]]-Таблица1[[#This Row],[План ДВН, чел.]] -> 0 | H139: =ROUND(Таблица1[[#This Row],[Оплачено случаев]]/Таблица1[[#This Row],[План ДВН, чел.]]*100,1) -> 
A140: Июль | B140: ДВН | C140: ЦРБ Жуковского района | D140: 0 | E140: 0 | F140: 0 | G140: =Таблица1[[#This Row],[Оплачено случаев]]-Таблица1[[#This Row],[План ДВН, чел.]] -> 0 | H140: =ROUND(Таблица1[[#This Row],[Оплачено случаев]]/Таблица1[[#This Row],[План ДВН, чел.]]*100,1) -> 
A141: Июль | B141: ДВН | C141: ГП "Город Кременки" | D141: 0 | E141: 0 | F141: 0 | G141: =Таблица1[[#This Row],[Оплачено случаев]]-Таблица1[[#This Row],[План ДВН, чел.]] -> 0 | H141: =ROUND(Таблица1[[#This Row],[Оплачено случаев]]/Таблица1[[#This Row],[План ДВН, чел.]]*100,1) -> 
A142: Июль | B142: ДВН | C142: ЦРБ Малоярославецкого района | D142: 0 | E142: 0 | F142: 0 | G142: =Таблица1[[#This Row],[Оплачено случаев]]-Таблица1[[#This Row],[План ДВН, чел.]] -> 0 | H142: =ROUND(Таблица1[[#This Row],[Оплачено случаев]]/Таблица1[[#This Row],[План ДВН, чел.]]*100,1) -> 
A143: Июль | B143: ДВН | C143: ЦРБ Тарусского района | D143: 0 | E143: 0 | F143: 0 | G143: =Таблица1[[#This Row],[Оплачено случаев]]-Таблица1[[#This Row],[План ДВН, чел.]] -> 0 | H143: =ROUND(Таблица1[[#This Row],[Оплачено случаев]]/Таблица1[[#This Row],[План ДВН, чел.]]*100,1) -> 
A144: Август | B144: ДВН | C144: ЦМБ № 1 | D144: =AS4 -> 0 | E144: =AT4 -> 0 | F144: =AU4 -> 0 | G144: =Таблица1[[#This Row],[Оплачено случаев]]-Таблица1[[#This Row],[План ДВН, чел.]] -> 0 | H144: =ROUND(Таблица1[[#This Row],[Оплачено случаев]]/Таблица1[[#This Row],[План ДВН, чел.]]*100,1) -> 
A145: Август | B145: ДВН | C145: ЦМБ № 2 | D145: 0 | E145: 0 | F145: 0 | G145: =Таблица1[[#This Row],[Оплачено случаев]]-Таблица1[[#This Row],[План ДВН, чел.]] -> 0 | H145: =ROUND(Таблица1[[#This Row],[Оплачено случаев]]/Таблица1[[#This Row],[План ДВН, чел.]]*100,1) -> 
A146: Август | B146: ДВН | C146: ЦМБ № 3 | D146: 0 | E146: 0 | F146: 0 | G146: =Таблица1[[#This Row],[Оплачено случаев]]-Таблица1[[#This Row],[План ДВН, чел.]] -> 0 | H146: =ROUND(Таблица1[[#This Row],[Оплачено случаев]]/Таблица1[[#This Row],[План ДВН, чел.]]*100,1) -> 
A147: Август | B147: ДВН | C147: ЦМБ № 4 | D147: 0 | E147: 0 | F147: 0 | G147: =Таблица1[[#This Row],[Оплачено случаев]]-Таблица1[[#This Row],[План ДВН, чел.]] -> 0 | H147: =ROUND(Таблица1[[#This Row],[Оплачено случаев]]/Таблица1[[#This Row],[План ДВН, чел.]]*100,1) -> 
A148: Август | B148: ДВН | C148: ЦМБ № 5 | D148: 0 | E148: 0 | F148: 0 | G148: =Таблица1[[#This Row],[Оплачено случаев]]-Таблица1[[#This Row],[План ДВН, чел.]] -> 0 | H148: =ROUND(Таблица1[[#This Row],[Оплачено случаев]]/Таблица1[[#This Row],[План ДВН, чел.]]*100,1) -> 
A149: Август | B149: ДВН | C149: ЦМБ № 6 | D149: 0 | E149: 0 | F149: 0 | G149: =Таблица1[[#This Row],[Оплачено случаев]]-Таблица1[[#This Row],[План ДВН, чел.]] -> 0 | H149: =ROUND(Таблица1[[#This Row],[Оплачено случаев]]/Таблица1[[#This Row],[План ДВН, чел.]]*100,1) -> 
A150: Август | B150: ДВН | C150: КГБ № 5 | D150: 0 | E150: 0 | F150: 0 | G150: =Таблица1[[#This Row],[Оплачено случаев]]-Таблица1[[#This Row],[План ДВН, чел.]] -> 0 | H150: =ROUND(Таблица1[[#This Row],[Оплачено случаев]]/Таблица1[[#This Row],[План ДВН, чел.]]*100,1) -> 
A151: Август | B151: ДВН | C151: КГКБ № 4 | D151: 0 | E151: 0 | F151: 0 | G151: =Таблица1[[#This Row],[Оплачено случаев]]-Таблица1[[#This Row],[План ДВН, чел.]] -> 0 | H151: =ROUND(Таблица1[[#This Row],[Оплачено случаев]]/Таблица1[[#This Row],[План ДВН, чел.]]*100,1) -> 
A152: Август | B152: ДВН | C152: Городская поликлиника | D152: 0 | E152: 0 | F152: 0 | G152: =Таблица1[[#This Row],[Оплачено случаев]]-Таблица1[[#This Row],[План ДВН, чел.]] -> 0 | H152: =ROUND(Таблица1[[#This Row],[Оплачено случаев]]/Таблица1[[#This Row],[План ДВН, чел.]]*100,1) -> 
A153: Август | B153: ДВН | C153: МСЧ № 1 г. Калуги | D153: 0 | E153: 0 | F153: 0 | G153: =Таблица1[[#This Row],[Оплачено случаев]]-Таблица1[[#This Row],[План ДВН, чел.]] -> 0 | H153: =ROUND(Таблица1[[#This Row],[Оплачено случаев]]/Таблица1[[#This Row],[План ДВН, чел.]]*100,1) -> 
A154: Август | B154: ДВН | C154: МСЧ № 2 г. Калуги | D154: 0 | E154: 0 | F154: 0 | G154: =Таблица1[[#This Row],[Оплачено случаев]]-Таблица1[[#This Row],[План ДВН, чел.]] -> 0 | H154: =ROUND(Таблица1[[#This Row],[Оплачено случаев]]/Таблица1[[#This Row],[План ДВН, чел.]]*100,1) -> 
A155: Август | B155: ДВН | C155: МСЧ МВД | D155: 0 | E155: 0 | F155: 0 | G155: =Таблица1[[#This Row],[Оплачено случаев]]-Таблица1[[#This Row],[План ДВН, чел.]] -> 0 | H155: =ROUND(Таблица1[[#This Row],[Оплачено случаев]]/Таблица1[[#This Row],[План ДВН, чел.]]*100,1) -> 
A156: Август | B156: ДВН | C156: ЧУЗ "Больница "РЖД - Медицина" | D156: 0 | E156: 0 | F156: 0 | G156: =Таблица1[[#This Row],[Оплачено случаев]]-Таблица1[[#This Row],[План ДВН, чел.]] -> 0 | H156: =ROUND(Таблица1[[#This Row],[Оплачено случаев]]/Таблица1[[#This Row],[План ДВН, чел.]]*100,1) -> 
A157: Август | B157: ДВН | C157: КБ № 8 ФМБА | D157: 0 | E157: 0 | F157: 0 | G157: =Таблица1[[#This Row],[Оплачено случаев]]-Таблица1[[#This Row],[План ДВН, чел.]] -> 0 | H157: =ROUND(Таблица1[[#This Row],[Оплачено случаев]]/Таблица1[[#This Row],[План ДВН, чел.]]*100,1) -> 
A158: Август | B158: ДВН | C158: ЦРБ Бабынинского района | D158: 0 | E158: 0 | F158: 0 | G158: =Таблица1[[#This Row],[Оплачено случаев]]-Таблица1[[#This Row],[План ДВН, чел.]] -> 0 | H158: =ROUND(Таблица1[[#This Row],[Оплачено случаев]]/Таблица1[[#This Row],[План ДВН, чел.]]*100,1) -> 
A159: Август | B159: ДВН | C159: ЦРБ Боровского района | D159: 0 | E159: 0 | F159: 0 | G159: =Таблица1[[#This Row],[Оплачено случаев]]-Таблица1[[#This Row],[План ДВН, чел.]] -> 0 | H159: =ROUND(Таблица1[[#This Row],[Оплачено случаев]]/Таблица1[[#This Row],[План ДВН, чел.]]*100,1) -> 
A160: Август | B160: ДВН | C160: ЦРБ Жуковского района | D160: 0 | E160: 0 | F160: 0 | G160: =Таблица1[[#This Row],[Оплачено случаев]]-Таблица1[[#This Row],[План ДВН, чел.]] -> 0 | H160: =ROUND(Таблица1[[#This Row],[Оплачено случаев]]/Таблица1[[#This Row],[План ДВН, чел.]]*100,1) -> 
A161: Август | B161: ДВН | C161: ГП "Город Кременки" | D161: 0 | E161: 0 | F161: 0 | G161: =Таблица1[[#This Row],[Оплачено случаев]]-Таблица1[[#This Row],[План ДВН, чел.]] -> 0 | H161: =ROUND(Таблица1[[#This Row],[Оплачено случаев]]/Таблица1[[#This Row],[План ДВН, чел.]]*100,1) -> 
A162: Август | B162: ДВН | C162: ЦРБ Малоярославецкого района | D162: 0 | E162: 0 | F162: 0 | G162: =Таблица1[[#This Row],[Оплачено случаев]]-Таблица1[[#This Row],[План ДВН, чел.]] -> 0 | H162: =ROUND(Таблица1[[#This Row],[Оплачено случаев]]/Таблица1[[#This Row],[План ДВН, чел.]]*100,1) -> 
A163: Август | B163: ДВН | C163: ЦРБ Тарусского района | D163: 0 | E163: 0 | F163: 0 | G163: =Таблица1[[#This Row],[Оплачено случаев]]-Таблица1[[#This Row],[План ДВН, чел.]] -> 0 | H163: =ROUND(Таблица1[[#This Row],[Оплачено случаев]]/Таблица1[[#This Row],[План ДВН, чел.]]*100,1) -> 
A164: Сентябрь | B164: ДВН | C164: ЦМБ № 1 | D164: =AX4 -> 0 | E164: =AY4 -> 0 | F164: =AZ4 -> 0 | G164: =Таблица1[[#This Row],[Оплачено случаев]]-Таблица1[[#This Row],[План ДВН, чел.]] -> 0 | H164: =ROUND(Таблица1[[#This Row],[Оплачено случаев]]/Таблица1[[#This Row],[План ДВН, чел.]]*100,1) -> 
A165: Сентябрь | B165: ДВН | C165: ЦМБ № 2 | D165: 0 | E165: 0 | F165: 0 | G165: =Таблица1[[#This Row],[Оплачено случаев]]-Таблица1[[#This Row],[План ДВН, чел.]] -> 0 | H165: =ROUND(Таблица1[[#This Row],[Оплачено случаев]]/Таблица1[[#This Row],[План ДВН, чел.]]*100,1) -> 
A166: Сентябрь | B166: ДВН | C166: ЦМБ № 3 | D166: 0 | E166: 0 | F166: 0 | G166: =Таблица1[[#This Row],[Оплачено случаев]]-Таблица1[[#This Row],[План ДВН, чел.]] -> 0 | H166: =ROUND(Таблица1[[#This Row],[Оплачено случаев]]/Таблица1[[#This Row],[План ДВН, чел.]]*100,1) -> 
A167: Сентябрь | B167: ДВН | C167: ЦМБ № 4 | D167: 0 | E167: 0 | F167: 0 | G167: =Таблица1[[#This Row],[Оплачено случаев]]-Таблица1[[#This Row],[План ДВН, чел.]] -> 0 | H167: =ROUND(Таблица1[[#This Row],[Оплачено случаев]]/Таблица1[[#This Row],[План ДВН, чел.]]*100,1) -> 
A168: Сентябрь | B168: ДВН | C168: ЦМБ № 5 | D168: 0 | E168: 0 | F168: 0 | G168: =Таблица1[[#This Row],[Оплачено случаев]]-Таблица1[[#This Row],[План ДВН, чел.]] -> 0 | H168: =ROUND(Таблица1[[#This Row],[Оплачено случаев]]/Таблица1[[#This Row],[План ДВН, чел.]]*100,1) -> 
A169: Сентябрь | B169: ДВН | C169: ЦМБ № 6 | D169: 0 | E169: 0 | F169: 0 | G169: =Таблица1[[#This Row],[Оплачено случаев]]-Таблица1[[#This Row],[План ДВН, чел.]] -> 0 | H169: =ROUND(Таблица1[[#This Row],[Оплачено случаев]]/Таблица1[[#This Row],[План ДВН, чел.]]*100,1) -> 
A170: Сентябрь | B170: ДВН | C170: КГБ № 5 | D170: 0 | E170: 0 | F170: 0 | G170: =Таблица1[[#This Row],[Оплачено случаев]]-Таблица1[[#This Row],[План ДВН, чел.]] -> 0 | H170: =ROUND(Таблица1[[#This Row],[Оплачено случаев]]/Таблица1[[#This Row],[План ДВН, чел.]]*100,1) -> 
A171: Сентябрь | B171: ДВН | C171: КГКБ № 4 | D171: 0 | E171: 0 | F171: 0 | G171: =Таблица1[[#This Row],[Оплачено случаев]]-Таблица1[[#This Row],[План ДВН, чел.]] -> 0 | H171: =ROUND(Таблица1[[#This Row],[Оплачено случаев]]/Таблица1[[#This Row],[План ДВН, чел.]]*100,1) -> 
A172: Сентябрь | B172: ДВН | C172: Городская поликлиника | D172: 0 | E172: 0 | F172: 0 | G172: =Таблица1[[#This Row],[Оплачено случаев]]-Таблица1[[#This Row],[План ДВН, чел.]] -> 0 | H172: =ROUND(Таблица1[[#This Row],[Оплачено случаев]]/Таблица1[[#This Row],[План ДВН, чел.]]*100,1) -> 
A173: Сентябрь | B173: ДВН | C173: МСЧ № 1 г. Калуги | D173: 0 | E173: 0 | F173: 0 | G173: =Таблица1[[#This Row],[Оплачено случаев]]-Таблица1[[#This Row],[План ДВН, чел.]] -> 0 | H173: =ROUND(Таблица1[[#This Row],[Оплачено случаев]]/Таблица1[[#This Row],[План ДВН, чел.]]*100,1) -> 
A174: Сентябрь | B174: ДВН | C174: МСЧ № 2 г. Калуги | D174: 0 | E174: 0 | F174: 0 | G174: =Таблица1[[#This Row],[Оплачено случаев]]-Таблица1[[#This Row],[План ДВН, чел.]] -> 0 | H174: =ROUND(Таблица1[[#This Row],[Оплачено случаев]]/Таблица1[[#This Row],[План ДВН, чел.]]*100,1) -> 
A175: Сентябрь | B175: ДВН | C175: МСЧ МВД | D175: 0 | E175: 0 | F175: 0 | G175: =Таблица1[[#This Row],[Оплачено случаев]]-Таблица1[[#This Row],[План ДВН, чел.]] -> 0 | H175: =ROUND(Таблица1[[#This Row],[Оплачено случаев]]/Таблица1[[#This Row],[План ДВН, чел.]]*100,1) -> 
A176: Сентябрь | B176: ДВН | C176: ЧУЗ "Больница "РЖД - Медицина" | D176: 0 | E176: 0 | F176: 0 | G176: =Таблица1[[#This Row],[Оплачено случаев]]-Таблица1[[#This Row],[План ДВН, чел.]] -> 0 | H176: =ROUND(Таблица1[[#This Row],[Оплачено случаев]]/Таблица1[[#This Row],[План ДВН, чел.]]*100,1) -> 
A177: Сентябрь | B177: ДВН | C177: КБ № 8 ФМБА | D177: 0 | E177: 0 | F177: 0 | G177: =Таблица1[[#This Row],[Оплачено случаев]]-Таблица1[[#This Row],[План ДВН, чел.]] -> 0 | H177: =ROUND(Таблица1[[#This Row],[Оплачено случаев]]/Таблица1[[#This Row],[План ДВН, чел.]]*100,1) -> 
A178: Сентябрь | B178: ДВН | C178: ЦРБ Бабынинского района | D178: 0 | E178: 0 | F178: 0 | G178: =Таблица1[[#This Row],[Оплачено случаев]]-Таблица1[[#This Row],[План ДВН, чел.]] -> 0 | H178: =ROUND(Таблица1[[#This Row],[Оплачено случаев]]/Таблица1[[#This Row],[План ДВН, чел.]]*100,1) -> 
A179: Сентябрь | B179: ДВН | C179: ЦРБ Боровского района | D179: 0 | E179: 0 | F179: 0 | G179: =Таблица1[[#This Row],[Оплачено случаев]]-Таблица1[[#This Row],[План ДВН, чел.]] -> 0 | H179: =ROUND(Таблица1[[#This Row],[Оплачено случаев]]/Таблица1[[#This Row],[План ДВН, чел.]]*100,1) -> 
A180: Сентябрь | B180: ДВН | C180: ЦРБ Жуковского района | D180: 0 | E180: 0 | F180: 0 | G180: =Таблица1[[#This Row],[Оплачено случаев]]-Таблица1[[#This Row],[План ДВН, чел.]] -> 0 | H180: =ROUND(Таблица1[[#This Row],[Оплачено случаев]]/Таблица1[[#This Row],[План ДВН, чел.]]*100,1) -> 
A181: Сентябрь | B181: ДВН | C181: ГП "Город Кременки" | D181: 0 | E181: 0 | F181: 0 | G181: =Таблица1[[#This Row],[Оплачено случаев]]-Таблица1[[#This Row],[План ДВН, чел.]] -> 0 | H181: =ROUND(Таблица1[[#This Row],[Оплачено случаев]]/Таблица1[[#This Row],[План ДВН, чел.]]*100,1) -> 
A182: Сентябрь | B182: ДВН | C182: ЦРБ Малоярославецкого района | D182: 0 | E182: 0 | F182: 0 | G182: =Таблица1[[#This Row],[Оплачено случаев]]-Таблица1[[#This Row],[План ДВН, чел.]] -> 0 | H182: =ROUND(Таблица1[[#This Row],[Оплачено случаев]]/Таблица1[[#This Row],[План ДВН, чел.]]*100,1) -> 
A183: Сентябрь | B183: ДВН | C183: ЦРБ Тарусского района | D183: 0 | E183: 0 | F183: 0 | G183: =Таблица1[[#This Row],[Оплачено случаев]]-Таблица1[[#This Row],[План ДВН, чел.]] -> 0 | H183: =ROUND(Таблица1[[#This Row],[Оплачено случаев]]/Таблица1[[#This Row],[План ДВН, чел.]]*100,1) -> 
A184: Октябрь | B184: ДВН | C184: ЦМБ № 1 | D184: =BC4 -> 0 | E184: =BD4 -> 0 | F184: =BE4 -> 0 | G184: =Таблица1[[#This Row],[Оплачено случаев]]-Таблица1[[#This Row],[План ДВН, чел.]] -> 0 | H184: =ROUND(Таблица1[[#This Row],[Оплачено случаев]]/Таблица1[[#This Row],[План ДВН, чел.]]*100,1) -> 
A185: Октябрь | B185: ДВН | C185: ЦМБ № 2 | D185: 0 | E185: 0 | F185: 0 | G185: =Таблица1[[#This Row],[Оплачено случаев]]-Таблица1[[#This Row],[План ДВН, чел.]] -> 0 | H185: =ROUND(Таблица1[[#This Row],[Оплачено случаев]]/Таблица1[[#This Row],[План ДВН, чел.]]*100,1) -> 
A186: Октябрь | B186: ДВН | C186: ЦМБ № 3 | D186: 0 | E186: 0 | F186: 0 | G186: =Таблица1[[#This Row],[Оплачено случаев]]-Таблица1[[#This Row],[План ДВН, чел.]] -> 0 | H186: =ROUND(Таблица1[[#This Row],[Оплачено случаев]]/Таблица1[[#This Row],[План ДВН, чел.]]*100,1) -> 
A187: Октябрь | B187: ДВН | C187: ЦМБ № 4 | D187: 0 | E187: 0 | F187: 0 | G187: =Таблица1[[#This Row],[Оплачено случаев]]-Таблица1[[#This Row],[План ДВН, чел.]] -> 0 | H187: =ROUND(Таблица1[[#This Row],[Оплачено случаев]]/Таблица1[[#This Row],[План ДВН, чел.]]*100,1) -> 
A188: Октябрь | B188: ДВН | C188: ЦМБ № 5 | D188: 0 | E188: 0 | F188: 0 | G188: =Таблица1[[#This Row],[Оплачено случаев]]-Таблица1[[#This Row],[План ДВН, чел.]] -> 0 | H188: =ROUND(Таблица1[[#This Row],[Оплачено случаев]]/Таблица1[[#This Row],[План ДВН, чел.]]*100,1) -> 
A189: Октябрь | B189: ДВН | C189: ЦМБ № 6 | D189: 0 | E189: 0 | F189: 0 | G189: =Таблица1[[#This Row],[Оплачено случаев]]-Таблица1[[#This Row],[План ДВН, чел.]] -> 0 | H189: =ROUND(Таблица1[[#This Row],[Оплачено случаев]]/Таблица1[[#This Row],[План ДВН, чел.]]*100,1) -> 
A190: Октябрь | B190: ДВН | C190: КГБ № 5 | D190: 0 | E190: 0 | F190: 0 | G190: =Таблица1[[#This Row],[Оплачено случаев]]-Таблица1[[#This Row],[План ДВН, чел.]] -> 0 | H190: =ROUND(Таблица1[[#This Row],[Оплачено случаев]]/Таблица1[[#This Row],[План ДВН, чел.]]*100,1) -> 
A191: Октябрь | B191: ДВН | C191: КГКБ № 4 | D191: 0 | E191: 0 | F191: 0 | G191: =Таблица1[[#This Row],[Оплачено случаев]]-Таблица1[[#This Row],[План ДВН, чел.]] -> 0 | H191: =ROUND(Таблица1[[#This Row],[Оплачено случаев]]/Таблица1[[#This Row],[План ДВН, чел.]]*100,1) -> 
A192: Октябрь | B192: ДВН | C192: Городская поликлиника | D192: 0 | E192: 0 | F192: 0 | G192: =Таблица1[[#This Row],[Оплачено случаев]]-Таблица1[[#This Row],[План ДВН, чел.]] -> 0 | H192: =ROUND(Таблица1[[#This Row],[Оплачено случаев]]/Таблица1[[#This Row],[План ДВН, чел.]]*100,1) -> 
A193: Октябрь | B193: ДВН | C193: МСЧ № 1 г. Калуги | D193: 0 | E193: 0 | F193: 0 | G193: =Таблица1[[#This Row],[Оплачено случаев]]-Таблица1[[#This Row],[План ДВН, чел.]] -> 0 | H193: =ROUND(Таблица1[[#This Row],[Оплачено случаев]]/Таблица1[[#This Row],[План ДВН, чел.]]*100,1) -> 
A194: Октябрь | B194: ДВН | C194: МСЧ № 2 г. Калуги | D194: 0 | E194: 0 | F194: 0 | G194: =Таблица1[[#This Row],[Оплачено случаев]]-Таблица1[[#This Row],[План ДВН, чел.]] -> 0 | H194: =ROUND(Таблица1[[#This Row],[Оплачено случаев]]/Таблица1[[#This Row],[План ДВН, чел.]]*100,1) -> 
A195: Октябрь | B195: ДВН | C195: МСЧ МВД | D195: 0 | E195: 0 | F195: 0 | G195: =Таблица1[[#This Row],[Оплачено случаев]]-Таблица1[[#This Row],[План ДВН, чел.]] -> 0 | H195: =ROUND(Таблица1[[#This Row],[Оплачено случаев]]/Таблица1[[#This Row],[План ДВН, чел.]]*100,1) -> 
A196: Октябрь | B196: ДВН | C196: ЧУЗ "Больница "РЖД - Медицина" | D196: 0 | E196: 0 | F196: 0 | G196: =Таблица1[[#This Row],[Оплачено случаев]]-Таблица1[[#This Row],[План ДВН, чел.]] -> 0 | H196: =ROUND(Таблица1[[#This Row],[Оплачено случаев]]/Таблица1[[#This Row],[План ДВН, чел.]]*100,1) -> 
A197: Октябрь | B197: ДВН | C197: КБ № 8 ФМБА | D197: 0 | E197: 0 | F197: 0 | G197: =Таблица1[[#This Row],[Оплачено случаев]]-Таблица1[[#This Row],[План ДВН, чел.]] -> 0 | H197: =ROUND(Таблица1[[#This Row],[Оплачено случаев]]/Таблица1[[#This Row],[План ДВН, чел.]]*100,1) -> 
A198: Октябрь | B198: ДВН | C198: ЦРБ Бабынинского района | D198: 0 | E198: 0 | F198: 0 | G198: =Таблица1[[#This Row],[Оплачено случаев]]-Таблица1[[#This Row],[План ДВН, чел.]] -> 0 | H198: =ROUND(Таблица1[[#This Row],[Оплачено случаев]]/Таблица1[[#This Row],[План ДВН, чел.]]*100,1) -> 
A199: Октябрь | B199: ДВН | C199: ЦРБ Боровского района | D199: 0 | E199: 0 | F199: 0 | G199: =Таблица1[[#This Row],[Оплачено случаев]]-Таблица1[[#This Row],[План ДВН, чел.]] -> 0 | H199: =ROUND(Таблица1[[#This Row],[Оплачено случаев]]/Таблица1[[#This Row],[План ДВН, чел.]]*100,1) -> 
A200: Октябрь | B200: ДВН | C200: ЦРБ Жуковского района | D200: 0 | E200: 0 | F200: 0 | G200: =Таблица1[[#This Row],[Оплачено случаев]]-Таблица1[[#This Row],[План ДВН, чел.]] -> 0 | H200: =ROUND(Таблица1[[#This Row],[Оплачено случаев]]/Таблица1[[#This Row],[План ДВН, чел.]]*100,1) -> 
... 43 more rows

Sheet Все МО (hidden)
A1: Месяц | B1: Март
A3: Названия строк | B3: Оплачено случаев | C3: План ДВН, чел.
A4: МСЧ МВД | B4: 0 | C4: 0
A5: МСЧ № 2 г. Калуги | B5: 1 | C5: 0
A6: ГП "Город Кременки" | B6: 19 | C6: 50
A7: ЧУЗ "Больница "РЖД - Медицина" | B7: 36 | C7: 36
A8: ЦРБ Тарусского района | B8: 56 | C8: 50
A9: ЦМБ № 4 | B9: 62 | C9: 137
A10: ЦМБ № 3 | B10: 104 | C10: 244
A11: ЦРБ Бабынинского района | B11: 114 | C11: 101
A12: ЦРБ Малоярославецкого района | B12: 169 | C12: 273
A13: ЦМБ № 1 | B13: 183 | C13: 336
A14: ЦМБ № 5 | B14: 226 | C14: 146
A15: ЦРБ Жуковского района | B15: 289 | C15: 120
A16: ЦРБ Боровского района | B16: 297 | C16: 200
A17: ЦМБ № 2 | B17: 338 | C17: 530
A18: ЦМБ № 6 | B18: 349 | C18: 350
A19: Городская поликлиника | B19: 413 | C19: 456
A20: КБ № 8 ФМБА | B20: 564 | C20: 875
A21: МСЧ № 1 г. Калуги | B21: 830 | C21: 600
A22: КГБ № 5 | B22: 1031 | C22: 1100
A23: КГКБ № 4 | B23: 1150 | C23: 912
A24: Общий итог | B24: 6231 | C24: 6516

Sheet 10 лучших (hidden)
A1: Месяц | B1: Март
A3: Названия строк | B3: % выполнения
A4: КГБ № 5 | B4: 93.7
A5: ЦМБ № 6 | B5: 99.7
A6: ЧУЗ "Больница "РЖД - Медицина" | B6: 100
A7: ЦРБ Тарусского района | B7: 112
A8: ЦРБ Бабынинского района | B8: 112.9
A9: КГКБ № 4 | B9: 126.1
A10: МСЧ № 1 г. Калуги | B10: 138.3
A11: ЦРБ Боровского района | B11: 148.5
A12: ЦМБ № 5 | B12: 154.8
A13: ЦРБ Жуковского района | B13: 240.8
A14: Общий итог | B14: 132.68

Sheet 10 худших (hidden)
A1: Месяц | B1: Март
A3: Названия строк | B3: % выполнения
A4: ГП "Город Кременки" | B4: 38
A5: ЦМБ № 3 | B5: 42.6
A6: ЦМБ № 4 | B6: 45.3
A7: ЦМБ № 1 | B7: 54.5
A8: ЦРБ Малоярославецкого района | B8: 61.9
A9: ЦМБ № 2 | B9: 63.8
A10: КБ № 8 ФМБА | B10: 64.5
A11: Городская поликлиника | B11: 90.6
A12: КГБ № 5 | B12: 93.7
A13: ЦМБ № 6 | B13: 99.7
A14: Общий итог | B14: 65.46

Sheet Помесячно по МО (hidden)
A1: Выполнение ДВН
A3: Названия строк | B3: Оплачено случаев | C3: План ДВН, чел. | D3: Отклонение
A4: Январь | B4: 376 | C4: 425 | D4: -49
A5: Февраль | B5: 326 | C5: 456 | D5: -130
A6: Март | B6: 413 | C6: 456 | D6: -43
A7: Апрель | B7: 0 | C7: 0 | D7: 0
A8: Май | B8: 0 | C8: 0 | D8: 0
A9: Июнь | B9: 0 | C9: 0 | D9: 0
A10: Июль | B10: 0 | C10: 0 | D10: 0
A11: Август | B11: 0 | C11: 0 | D11: 0
A12: Сентябрь | B12: 0 | C12: 0 | D12: 0
A13: Октябрь | B13: 0 | C13: 0 | D13: 0
A14: Ноябрь | B14: 0 | C14: 0 | D14: 0
A15: Декабрь | B15: 0 | C15: 0 | D15: 0
A16: Общий итог | B16: 1115 | C16: 1337 | D16: -222

Sheet Дашборд ДВН
A2: ПРОФИЛАКТИЧЕСКИЕ ОСМОТРЫ ВЗРОСЛОГО НАСЕЛЕНИЯ В 2024 ГОДУ
